Cogmind - Beta 16 @@@ ROGUE MODE // 2026.02.01 @ 17:26:31 Player: +Jones Result: Destroyed by S-43 Plague with Heavy Machine Gun Performance ------------- Evolutions (7) 3500 Regions Visited (28) 5600 Robots Destroyed (555) 2775 Value Destroyed (24387) 24387 Prototype IDs (72) 1440 Alien Tech Used (1) 200 Bonus (9432) 9432 TOTAL SCORE: 47334 Bonus ------- High Alert Combat Kills 4683 Follower Combat Kills 797 Entered Garrisons 1000 Aligned with FarCom 300 Met Data Miner 300 Acquired ECA 300 Met Warlord at Base 500 MAIN.C Attacked Warlord 500 Warlord Defense Kills 1102 Friendly Fire -50 Cogmind --------- Core Integrity 0/1300 Matter 280/300 Energy 68/100 System Corruption 2% Temperature Cool (0) Movement Core (50) Location -3/Research Parts ------- > --- POWER (2) -------- (None) > --- PROPULSION (6) --- (None) > --- UTILITY (10) ----- Improved Dynamic Insulation System > --- WEAPON (4) ------- (None) > --- INVENTORY (5) ---- Vortex Catalyst Activator (6) Peak State ------------ > --- POWER ------------ Reinforced Fission Core Improved Quantum Reactor > --- PROPULSION ------- Improved Heavy Treads Improved Heavy Treads Spiked Heavy Treads > --- UTILITY ---------- Experimental Cooling System Cargo Storage Unit Spectral Analyzer Advanced Terrain Scanner Advanced Target Analyzer Improved Transmission Jammer Graphene Brace Improved Corruption Screen > --- WEAPON ----------- Advanced Plasma Cannon Vortex Cannon Vortex Cannon > --- INVENTORY -------- Vortex Chain Reactor Armored Medium Treads Improved Heavy Treads Armored Huge Wheel Armored Huge Wheel Centrium Wheel Matter Compressor Advanced Terrain Scan Processor Experimental Targeting Computer Improved Particle Charger Advanced Kinecellerator Hardened Light Armor Plating Makeshift Ablative Armor Makeshift Ablative Armor Advanced Remote Shield System Guard Long-range Tractor Beam YOLO Cannon Heavy Gauss Cannon Improved Grenade Launcher Precision Rocket Launcher Vortex Catalyst Activator Makeshift Hammer Vortex Lance [Rating: 149] Favorites ----------- Power Reinforced Fission Core Engine Improved Deuterium Engine Power Core Reinforced Fission Core Reactor Improved Quantum Reactor Propulsion Improved Heavy Treads Treads Improved Heavy Treads Wheel Armored Huge Wheel Flight Unit Q-thruster Utility Cargo Storage Unit Device Advanced Terrain Scanner Storage Cargo Storage Unit Processor Improved Corruption Screen Hackware Hacking Suite Protection Improved Medium Armor Plating Weapon Coil Gun Energy Gun Small Laser Energy Cannon Advanced Plasma Cannon Ballistic Gun Coil Gun Ballistic Cannon Light Cannon Launcher Precision Rocket Launcher Special Weapon Mining Laser Impact Weapon Heavy Mace Slashing Weapon Katana Piercing Weapon Vortex Lance Special Melee Weapon Improved Datajack Build | -11 -10 -10 -9 -9 -9 -8 -8 -8 -7 -7 -7 -7 -7 -7 -6 -6 -6 -6 -5 -5 -5 -5 -4 -4 -4 -4 -4 -3 ------- Run | Yrd Mat Min Mat Min Exi Min Mat Gar Fac Was Fac Gar Fac Gar Fac Low Low Dat Pro Fac Upp War Pro Fac Gar Fac Gar Res Slots Evolved 14 | . . . 2 . . . 2 . 2 . . . . . 2 . . . . 2 . . . 2 . . . 2 Power . | . . . . . . . . . . . . . . . . . . . . . . . . . . . . . Propulsion 4 | . . . 1 . . . 1 . . . . . . . 2 . . . . . . . . . . . . . Utility 8 | . . . 1 . . . 1 . 1 . . . . . . . . . . 2 . . . 2 . . . 1 Weapon 2 | . . . . . . . . . 1 . . . . . . . . . . . . . . . . . . 1 Parts Attached 318 | 7 14 2 12 6 3 1 29 7 12 . 10 17 3 18 27 2 3 . 6 37 2 17 4 17 5 27 17 13 Power 39 | 1 2 1 . 1 . 1 4 1 1 . . 2 1 2 2 1 . . 1 8 . 3 . 2 . 2 3 . Engine 17 | 1 1 1 . 1 . . 3 . 1 . . 2 1 2 1 . . . 1 1 . . . 1 . . . . Core 19 | . 1 . . . . 1 1 1 . . . . . . 1 1 . . . 7 . 1 . 1 . 1 3 . Reactor 3 | . . . . . . . . . . . . . . . . . . . . . . 2 . . . 1 . . Propulsion 53 | 2 . . 2 1 2 . 7 3 3 . . 3 . 5 4 . . . . 1 . 1 1 . 2 4 5 7 Treads 40 | 2 . . 2 1 2 . 5 3 1 . . 1 . 3 3 . . . . 1 . . 1 . 2 4 5 4 Leg . | . . . . . . . . . . . . . . . . . . . . . . . . . . . . . Wheel 11 | . . . . . . . 2 . 2 . . 2 . 2 1 . . . . . . 1 . . . . . 1 Hover . | . . . . . . . . . . . . . . . . . . . . . . . . . . . . . Flight 2 | . . . . . . . . . . . . . . . . . . . . . . . . . . . . 2 Utility 123 | 2 2 . 2 3 . . 11 1 6 . 5 5 1 6 10 1 1 . 2 19 2 8 1 10 2 16 4 3 Device 34 | 1 1 . . 2 . . . . . . . 1 . . 4 . 1 . . 7 1 3 1 5 . 5 1 1 Storage 11 | 1 1 . . . . . 3 . 1 . 1 . . 1 . . . . . . . 1 . 1 . . . 1 Processor 23 | . . . . . . . 2 . . . . 2 1 . 3 . . . . 4 1 3 . 1 . 5 . 1 Hackware 12 | . . . . . . . . . 2 . . . . . . . . . . 3 . . . 3 . 4 . . Protection 43 | . . . 2 1 . . 6 1 3 . 4 2 . 5 3 1 . . 2 5 . 1 . . 2 2 3 . Artifact . | . . . . . . . . . . . . . . . . . . . . . . . . . . . . . Weapon 103 | 2 10 1 8 1 1 . 7 2 2 . 5 7 1 5 11 . 2 . 3 9 . 5 2 5 1 5 5 3 Energy Gun 9 | 2 1 . 2 . . . . . . . . . . . . . . . 1 . . 1 1 1 . . . . Energy Cannon 9 | . . . . . . . . . . . . 1 . . 3 . . . . 3 . 1 1 . . . . . Ballistic Gun 47 | . 4 . . . . . 3 2 1 . 2 4 . 3 6 . . . 1 6 . 1 . 3 1 3 4 3 Ballistic Cannon 7 | . 2 . . . . . . . . . 1 . . 1 . . . . . . . . . 1 . 1 1 . Launcher 15 | . 2 1 . 1 . . 1 . 1 . . 2 1 1 . . 2 . 1 . . 1 . . . 1 . . Special Weapon 1 | . 1 . . . . . . . . . . . . . . . . . . . . . . . . . . . Impact Weapon 9 | . . . 5 . . . 3 . . . 1 . . . . . . . . . . . . . . . . . Slashing Weapon 4 | . . . 1 . . . . . . . 1 . . . 2 . . . . . . . . . . . . . Piercing Weapon 1 | . . . . . . . . . . . . . . . . . . . . . . 1 . . . . . . Special Melee Weapon 1 | . . . . . 1 . . . . . . . . . . . . . . . . . . . . . . . Unidentified Prototypes 19 | . . . . . . . 2 . 1 . . . . . 1 1 . . . . . 11 . 2 . . . 1 Parts Lost 97 | . 2 . . 4 . . 10 8 1 1 . 8 . . 2 . 1 . 3 3 . . 5 3 1 13 4 28 Power 13 | . 1 . . 1 . . 1 1 . . . 1 . . 1 . . . 1 . . . . 1 . 2 . 3 Propulsion 27 | . . . . 2 . . 3 4 . . . 3 . . . . 1 . . . . . 1 . . 1 3 9 Utility 37 | . 1 . . 1 . . 5 1 1 . . 3 . . . . . . 2 3 . . 2 1 1 8 . 8 Weapon 20 | . . . . . . . 1 2 . 1 . 1 . . 1 . . . . . . . 2 1 . 2 1 8 Highest Loss Streak 23 | . 2 . . 3 . . 2 3 1 1 . 4 . . 1 . 1 . 2 1 . . 5 1 1 4 1 23 To Critical Strikes 3 | . . . . . . . 2 . . . . . . . . . . . . . . . 1 . . . . . Average Backups 19 | 2 8 14 12 12 12 12 12 18 20 21 20 19 17 20 23 23 24 25 24 24 25 24 22 23 24 22 23 17 Power . | . . . . . . . . . . . . . . . . . . . . . 1 1 1 1 1 . 1 . Propulsion 3 | 1 . 2 3 2 1 1 1 1 2 6 6 4 6 4 4 5 4 4 3 3 4 3 3 4 4 3 5 3 Utility 7 | 1 . 3 3 5 6 6 6 7 6 3 3 5 3 6 10 9 10 11 10 11 9 11 10 11 11 10 6 4 Weapon 7 | . 6 7 5 3 4 4 4 9 11 12 10 8 7 8 8 9 9 10 9 8 10 8 7 6 7 7 8 8 Tool/Special . | . . . . . . . . . . . . . . . . . . . . . . . . . . . . . Unused Backups 82 | 1 2 4 13 1 . . 2 . 6 . 4 2 1 4 1 . . . 1 9 . 4 . 4 2 7 5 9 Power 2 | . . . . . . . . . . . . . . . . . . . . 1 . . . . . . 1 . Propulsion 15 | . . 1 4 . . . . . . . . 1 . 2 . . . . . 2 . . . . 2 1 2 . Utility 28 | 1 . 1 4 . . . . . 4 . . 1 . 1 1 . . . 1 5 . 1 . 2 . 3 1 2 Weapon 31 | . 1 2 4 1 . . 2 . 2 . 4 . 1 . . . . . . 1 . 2 . 2 . 2 1 6 Tool/Special 6 | . 1 . 1 . . . . . . . . . . 1 . . . . . . . 1 . . . 1 . 1 Average Slot Usage (%) 82 | . 98 100 98 94 100 100 87 90 89 81 86 86 89 81 72 71 74 75 73 76 77 76 72 79 79 77 75 58 Engine 5 | . 3 6 10 10 11 9 6 . 2 7 7 6 7 7 5 6 6 6 10 3 . 3 . . 5 2 . . Core 3 | . 9 7 . . . 1 2 2 4 . . . . . . 2 6 6 . 7 11 6 5 5 5 4 2 7 Treads 17 | . 27 28 32 31 33 33 19 32 16 7 7 6 7 11 15 18 17 18 18 15 16 . 4 14 14 14 14 10 Wheel 3 | . . . . . . . 8 2 6 15 15 14 15 3 4 . . . . . . 15 11 . . . . . Device 7 | . 13 14 11 12 11 11 1 1 . . . . 7 . 1 9 11 12 10 6 15 10 9 15 10 6 12 8 Storage 7 | . 14 14 11 11 11 11 9 9 7 7 7 7 7 7 6 6 6 6 6 5 5 5 5 5 5 5 5 3 Processor 6 | . . . . . . . 8 9 . . . . 10 13 11 6 6 6 6 4 5 9 11 13 10 18 10 8 Hackware 3 | . . . . . . . . . 11 15 15 12 . . . . . . . 9 5 5 2 5 9 6 10 2 Protection 6 | . . . 10 7 11 11 14 15 14 7 9 11 11 13 5 3 . . 1 4 . . 3 . 4 2 2 1 Energy Cannon 1 | . . . . . . . . . . . . . . . . 3 5 6 2 3 3 4 6 8 . . . . Ballistic Gun 9 | . 11 . . . . . . 9 22 20 17 18 13 17 15 15 12 12 14 11 8 1 . 3 12 11 9 13 Ballistic Cannon 1 | . 8 27 1 . . . . . . . . . . . . . . . . . . . . 1 1 2 5 . Impact Weapon 4 | . . . 12 14 16 21 17 7 . . 2 2 2 2 . . . . . 1 3 2 . . . . . . Peak Build Rating 149 | 7 13 13 22 19 18 20 39 38 52 46 50 62 57 77 90 97 96 96 97 112 107 114 137 149 148 142 146 142 Average Rating 76 | 4 10 12 19 15 17 18 28 34 46 41 46 48 53 71 83 93 95 96 94 107 106 98 111 142 140 135 141 103 On Entrance 68 | . 7 12 13 19 14 18 20 37 38 46 37 50 55 57 64 88 95 96 96 96 104 107 114 137 137 142 138 136 Avg Prop Armor Cover (%) 8 | . . . . 8 . . 8 16 9 8 7 5 6 10 11 . . . . . . . 15 5 . . . . Naked Turns 12 | . . . . . . . . . . . . . . . . . . . . . . . . . . . . 12 Heaviest Build 227 | 11 33 36 40 39 33 37 109 97 110 105 120 120 109 175 179 193 183 183 196 215 200 219 225 227 213 208 217 223 Greatest Support 225 | 40 40 40 60 60 66 66 88 88 88 38 38 38 38 150 225 225 225 225 225 225 225 84 225 225 225 225 215 215 Greatest Overweight (x) 7 | 3 1 . . . . . 3 7 3 2 3 3 2 4 6 . . . . 1 . 2 3 1 1 1 1 2 Average Overweight (x) . | 1 . . . . . . . 2 2 2 2 2 2 1 . . . . . . . 1 2 . . . . . Largest Inventory Capacity 30 | 8 15 15 15 15 15 15 25 25 25 25 25 25 25 30 30 30 30 30 30 30 30 30 30 30 30 30 30 30 Average Capacity 25 | 7 14 15 15 15 15 15 17 25 25 25 25 25 25 25 30 30 30 30 30 30 30 30 30 30 30 30 30 22 Most Carried 30 | 4 14 15 15 15 15 15 22 25 25 25 25 25 25 30 30 30 30 30 30 30 30 30 30 30 30 30 30 30 Average Carried 24 | 2 8 14 14 14 14 15 15 21 24 25 24 23 24 25 29 29 29 30 29 29 30 29 29 29 29 28 26 19 Final Capacity 30 | 8 15 15 15 15 15 15 25 25 25 25 25 25 25 30 30 30 30 30 30 30 30 30 30 30 30 30 30 5 Final Carried 30 | 2 14 15 15 15 15 15 20 25 25 25 25 25 25 30 30 30 30 30 30 30 30 29 29 30 30 24 29 2 Class Distribution -------------------- 20% | Hauler-Skirmisher 18% | Hauler-Tank 17% | Mutant 8% | Gladiator 7% | Scavenger-Mutant 6% | Hauler-Mutant 5% | Hauler-Gunner 4% | Hauler-Assassin 4% | Scavenger-Tank Dominant Class ---------------- Mutant | -10/Materials Mutant | -10/Mines Mutant | -9/Materials Scavenger-Mutant | -9/Mines Mutant | -9/Exiles Mutant | -8/Mines Gladiator | -8/Materials Mutant | -8/Garrison Scavenger-Tank | -7/Factory Scavenger-Skirmisher | -7/Waste Hacker-Mutant | -7/Factory Scavenger-Mutant | -7/Garrison Scavenger-Mutant | -7/Factory Scavenger-Tank | -7/Garrison Hauler-Mutant | -6/Factory Hauler-Skirmisher | -6/Lower Caves Hauler-Skirmisher | -6/Lower Caves Hauler-Skirmisher | -6/Data Miner Hauler-Skirmisher | -5/Proximity Caves Hauler-Tank | -5/Factory Hauler-Assassin | -5/Upper Caves Hauler-Skirmisher | -5/Warlord Hauler-Skirmisher | -4/Proximity Caves Hauler-Skirmisher | -4/Factory Hauler-Skirmisher | -4/Garrison Hauler-Tank | -4/Factory Hauler-Gunner | -4/Garrison Scavenger-Tank | -3/Research Resources | -11 -10 -10 -9 -9 -9 -8 -8 -8 -7 -7 -7 -7 -7 -7 -6 -6 -6 -6 -5 -5 -5 -5 -4 -4 -4 -4 -4 -3 ----------- Run | Yrd Mat Min Mat Min Exi Min Mat Gar Fac Was Fac Gar Fac Gar Fac Low Low Dat Pro Fac Upp War Pro Fac Gar Fac Gar Res Matter Collected 22513 | 270 606 302 382 190 . 100 686 550 658 . 671 1529 88 1476 1514 459 216 . 409 2433 43 790 391 714 1831 2671 2639 895 Remotely 1242 | . . . . . . . . . . . . . . . . . 24 . . 212 . . . . . 465 . 541 Salvage Created 25784 | 205 725 174 567 687 . 246 2690 599 546 268 601 1519 . 1710 1399 458 180 . 498 2549 43 290 262 624 1891 3314 1822 1917 Parts 1224 | 19 63 20 32 27 . 14 68 19 19 4 33 65 . 77 73 18 3 . 19 146 . 18 9 30 100 183 76 89 Haulers Intercepted 12 | . 1 . 4 . . . 6 . . . . . . . . . . . . . . . . 1 . . . . Recyclers Shooed 16 | . 1 . . . . . 1 . . . 1 . . . 2 . . . . 3 . . . . . 5 . 3 Parts Field Recycled . | . . . . . . . . . . . . . . . . . . . . . . . . . . . . . Retrieved Matter . | . . . . . . . . . . . . . . . . . . . . . . . . . . . . . Parts Self-Destructed 40 | . . . . . . . . . . . . . . . . 16 2 . 14 . . . 8 . . . . . Prevented 6 | . . . . . . . . . . . . . . . . . . . 6 . . . . . . . . . Parts Restored . | . . . . . . . . . . . . . . . . . . . . . . . . . . . . . Kills | -11 -10 -10 -9 -9 -9 -8 -8 -8 -7 -7 -7 -7 -7 -7 -6 -6 -6 -6 -5 -5 -5 -5 -4 -4 -4 -4 -4 -3 ------- Run | Yrd Mat Min Mat Min Exi Min Mat Gar Fac Was Fac Gar Fac Gar Fac Low Low Dat Pro Fac Upp War Pro Fac Gar Fac Gar Res Combat Hostiles Destroyed 395 | . 21 3 12 20 . 10 53 19 8 1 7 22 . 20 18 8 4 . 12 27 . 12 7 11 14 27 42 17 Melee 53 | . . . 6 10 . 2 28 2 . . 2 2 . . . . . . . . . . . . . 1 . . Guns 185 | . 9 . 1 . . . 1 . 8 1 5 11 . 13 17 8 1 . 3 26 . . 2 3 14 26 24 12 Cannons 26 | . . 1 1 . . . . . . . . . . . 1 . . . 1 1 . . 2 8 . . 11 . AOE 99 | . 12 2 3 9 . 7 3 11 . . . 9 . 7 . . 3 . 8 . . 12 3 . . . 7 3 Classes Destroyed 30 | 3 6 . 1 3 . . 2 2 . 1 . 1 . . 2 . . . 3 . . 2 1 . . 2 1 . Worker 41 | 1 5 1 1 1 . 1 9 . 2 . 2 . . . 2 . . . . 2 . . . 2 . 4 . 8 Builder 25 | . 1 2 1 . . 1 1 . . . 1 . . . 3 . . . . 3 . . . 1 . 2 . 9 Tunneler 12 | 5 1 2 . 1 . . 1 . . . . . . . . . . . . . . . . 1 . 1 . . Hauler 12 | . 1 . 4 . . . 6 . . . . . . . . . . . . . . . . 1 . . . . Recycler 33 | 1 2 1 . 4 . . 1 . . . 4 . . . 2 . . . . 6 . . . 1 . 7 . 4 Carrier 1 | . . . . . . . . . . . . . . . . . . . . . . . . . . 1 . . Minesweeper 1 | . . . . . . . . . . . . . . . . . . . 1 . . . . . . . . . Mechanic 3 | . . . . . . . . . . . . . . . 1 . . . . 1 . . . . . 1 . . Operator 6 | . 2 . 1 . . . 1 . . . . . . . . . . . . 1 . . . . . 1 . . Drone 2 | . . . . . . . . . . . . . . . . . . . . . . . 2 . . . . . Turret 16 | . . . . . . . . . . . . . . . . . . . . . . . . . . 16 . . Watcher 20 | . 3 . 2 . . . 4 . 2 . . . . . 2 . . . . 2 . . . 1 . 3 . 1 Swarmer 87 | . 9 3 4 . . 7 13 8 . . 3 11 . 9 5 3 . . 3 . . . . . . . 8 1 Cutter 7 | . . . . . . . . . . . . 3 . . . . . . . . . . . . 2 . 2 . Saboteur 6 | . . . . . . . . . . . . . . . . . . . 1 . . 4 . . . . . 1 Grunt 130 | . 12 . 3 7 . 3 26 7 4 . . 3 . 5 3 2 3 . 5 3 . 6 . 2 7 5 17 7 Brawler 12 | . . . . 1 . . 3 . . . . . . . . 1 1 . 1 . . . . . . 1 4 . Duelist 8 | . . . . . . . 3 . . . . . . . 1 . . . 1 . . . . 1 . . 1 1 Protector 1 | . . . . . . . . . . . . . . . . . . . . . . 1 . . . . . . Sentry 36 | . . . 5 . . . 7 1 3 . 1 3 . 3 3 . . . 1 1 . . 1 . 2 2 2 1 Demolisher 1 | . . . . 1 . . . . . . . . . . . . . . . . . . . . . . . . Specialist 2 | . . . . . . . . 2 . . . . . . . . . . . . . . . . . . . . Hunter 30 | . . . . . . . 1 . . . 1 . . 1 . 2 . . . 5 . . 4 . 1 9 2 4 Programmer 57 | . . . . . . . . 1 1 . 2 2 . 2 5 . . . . 18 . . . 8 2 11 5 . Heavy 3 | . . . . . . . . . . . . . . . 1 . . . . . . . . . . . . 2 Behemoth 1 | . . . . . . . . . . . . . . . . . . . . . . . . . . . 1 . Compactor 1 | . . . . . . . . . . 1 . . . . . . . . . . . . . . . . . . Striker 1 | . . . . . . . . . . . . . . . . . . . . . . 1 . . . . . . Decomposer 3 | . . . . . . . . . . . . . . . . 3 . . . . . . . . . . . . Samaritan 4 | . . . . . . . . . . . . . . . . . . . 3 . 1 . . . . . . . Assembled 11 | . . . . 11 . . . . . . . . . . . . . . . . . . . . . . . . Best Kill Streak 17 | 2 8 4 3 11 . 7 9 7 5 1 3 8 . 5 4 3 4 . 9 4 . 12 1 4 4 17 9 17 Combat Bots Only 12 | . 5 3 3 11 . 7 7 7 4 1 3 8 . 5 4 3 4 . 9 4 . 12 1 3 4 5 9 8 Max Kills in Single Turn 10 | 1 6 2 2 2 . 3 1 3 2 1 1 2 . 2 2 3 1 . 3 2 1 2 1 2 1 10 3 6 Gunslinging 1 | . . . . . . . . . 1 . . 1 . 1 1 1 . . . . . . . . . . . 1 Exploded 3 | . 3 2 2 2 . 3 1 3 . . . 2 . 2 . . 1 . 2 . . 2 1 . . . 3 2 Melee 1 | . . . 1 1 . 1 1 1 . . 1 1 . . . . . . . . . . . . . 1 . . Uniques/NPCs Destroyed . | . . . . . . . . . . . . . . . . . . . . . . . . . . . . . Combat | -11 -10 -10 -9 -9 -9 -8 -8 -8 -7 -7 -7 -7 -7 -7 -6 -6 -6 -6 -5 -5 -5 -5 -4 -4 -4 -4 -4 -3 -------- Run | Yrd Mat Min Mat Min Exi Min Mat Gar Fac Was Fac Gar Fac Gar Fac Low Low Dat Pro Fac Upp War Pro Fac Gar Fac Gar Res Hostile Shots Fired 2554 | . 74 7 60 50 . 16 177 135 71 2 53 219 . 60 174 41 33 . 34 269 . 9 108 76 88 226 197 375 Missed 608 | . 13 2 13 11 . 3 43 40 32 . 17 66 . 15 29 1 6 . 9 50 . 4 42 17 11 41 39 104 Hits 1946 | . 61 5 47 39 . 13 134 95 39 2 36 153 . 45 145 40 27 . 25 219 . 5 66 59 77 185 158 271 Melee 52 | . . . . 4 . . 10 . . 2 . 1 . . 4 4 . . 1 . . . . 6 10 . 4 6 Projectile 1894 | . 61 5 47 35 . 13 124 95 39 . 36 152 . 45 141 36 27 . 24 219 . 5 66 53 67 185 154 265 AOE 23 | . . . . 10 . . 3 . . . . 2 . . . . . . . 1 . . . . . 6 1 . Critical Strikes 89 | . . . 2 . . . 6 4 1 2 1 1 . 1 5 4 1 . . 10 . . 4 2 6 16 5 18 Part Disruptions 4 | . . . . 1 . . . 1 . . . 1 . . . . . . . . . . . 1 . . . . Damage Taken 34141 | . 647 36 539 840 . 194 2016 1324 315 88 518 2309 . 590 2071 755 529 . 522 3847 . 92 1088 1494 1232 3859 3582 5654 Core 3280 | . 116 . 103 105 . 18 218 198 43 52 54 126 . 4 65 34 . . 4 209 . . 120 152 33 114 206 1306 Absorbed by Shields 1716 | . . . . . . . . 36 . . . 13 . . . . . . . 599 . 28 . . 444 437 . 159 Reduced by Siege Mode 2717 | . . . . . . . . . . . . . . 81 207 85 47 . 31 319 . . . 52 204 577 757 357 Redirected to Shielding 23 | . . . . . . . . . . . . 17 . 1 . . . . . . . . . . . . 5 . Ignored by Resistances 42 | . . . 42 . . . . . . . . . . . . . . . . . . . . . . . . . Regen/Repaired (Parts) 2891 | . 257 . 216 . . . 10 . 10 . . . . . . . . . . 2268 . 20 . . . 110 . . Core Remaining (%) 61 | 100 . 53 . . . 43 . 24 . . . . . 60 . . . . 87 . . . 67 . . . 56 . Volleys Fired 1271 | 21 77 13 21 8 . 4 15 47 31 15 44 55 . 62 76 32 8 . 31 191 1 26 21 48 129 117 131 47 Largest 4 | 2 2 2 2 1 . 1 1 2 3 3 3 3 . 3 3 3 3 . 3 3 1 1 3 3 3 3 3 4 Hottest 221 | 80 100 60 100 30 . 30 36 50 75 75 75 100 . 90 93 93 90 . 148 161 98 98 198 221 105 125 139 140 Shots Fired 2574 | 42 137 26 35 8 . 4 15 48 93 45 99 120 2 119 194 74 18 . 42 366 1 26 28 86 229 263 318 136 Gun 1949 | 42 116 . 2 . . . 12 30 93 45 82 107 2 106 182 65 15 . 16 273 . . 19 23 173 217 201 128 Cannon 475 | . 8 25 26 . . . . . . . 6 1 . . 12 9 . . 16 93 1 6 7 63 54 33 107 8 Launcher 148 | . 11 1 7 8 . 4 3 18 . . 11 12 . 13 . . 3 . 10 . . 20 2 . 2 13 10 . Special 2 | . 2 . . . . . . . . . . . . . . . . . . . . . . . . . . . Kinetic 2094 | . 72 25 26 . . . 12 30 93 45 88 107 2 106 182 65 15 . 16 273 . . . 26 225 250 308 128 Thermal 274 | 42 54 . . . . . . . . . . 1 . . 12 9 . . 16 93 1 6 3 27 2 . . 8 Explosive 131 | . 11 1 7 8 . 4 . 18 . . . 12 . 13 . . 3 . 10 . . 20 2 . 2 10 10 . Electromagnetic 16 | . . . 2 . . . 3 . . . 11 . . . . . . . . . . . . . . . . . Entropic 59 | . . . . . . . . . . . . . . . . . . . . . . . 23 33 . 3 . . Robot Hit Streak 65 | 4 6 4 9 1 . 5 3 4 12 11 25 6 4 10 30 12 23 . 17 24 . 8 4 9 65 38 54 60 Robot Miss Streak 5 | 4 5 2 5 1 . . 2 2 3 2 4 4 . 4 2 3 1 . 2 3 . 2 5 3 1 2 3 4 Penetration Max 2 | . . . . . . . 1 . . . . . . 1 1 1 . . . 1 . . . 1 2 1 1 2 Secondary Targets 31 | . . . . . . . . . 2 . . 2 . 3 3 1 1 . . 6 . . . . 3 1 2 7 Max Gunslinging Chain 1 | . . . . . . . . . 1 . . 1 . 1 1 1 1 . . 1 . . . . 1 1 1 1 Shots Hit Robots 1948 | 20 83 11 58 29 5 17 152 40 65 36 68 103 3 104 149 49 17 . 23 212 1 8 19 39 140 172 207 118 Core Hits 960 | 8 52 9 16 29 . 8 37 17 26 8 18 58 . 53 46 18 8 . 35 82 . 31 15 27 81 106 97 75 Critical Kills 99 | . . . . 3 . . 6 . . . 2 2 . 2 4 2 . . 1 8 . . . 3 16 37 7 6 Critical Parts Destroyed 158 | . . . 5 4 . 2 29 4 . . 4 1 . 1 2 3 1 . . 16 1 . 1 3 35 31 10 5 Critical Strikes 290 | . 2 . 7 7 . 2 35 5 . . 6 3 . 9 6 6 1 . 1 24 1 . 1 12 52 69 30 11 Meltdown 3 | . . . . . . . . . . . . . . . . . . . . . . . . . . . . 3 Destroy 196 | . . . . . . . . . . . 2 . . 4 5 6 1 . 1 24 . . . 6 52 68 19 8 Blast 15 | . 2 . 1 . . . . . . . . . . . . . . . . . . . . 1 . . 11 . Smash 63 | . . . 5 7 . 2 35 5 . . 4 3 . . 1 . . . . . 1 . . . . . . . Sever 6 | . . . 1 . . . . . . . . . . 5 . . . . . . . . . . . . . . Detonate 1 | . . . . . . . . . . . . . . . . . . . . . . . 1 . . . . . Sunder 6 | . . . . . . . . . . . . . . . . . . . . . . . . 5 . 1 . . Melee Attacks 625 | . . . 65 34 5 16 189 47 . . 25 92 8 69 37 . . . . 21 2 . . . 6 9 . . Impact 399 | . . . 43 21 . 16 177 47 . . 17 39 1 4 14 . . . . 18 2 . . . . . . . Slashing 206 | . . . 22 13 . . 12 . . . 8 53 7 65 23 . . . . 3 . . . . . . . . Piercing . | . . . . . . . . . . . . . . . . . . . . . . . . . . . . . Entropic 15 | . . . . . . . . . . . . . . . . . . . . . . . . . 6 9 . . Sneak Attacks 74 | . . . 9 9 4 3 29 2 . . 6 . 2 . 4 . . . . 4 1 . . . . 1 . . Combat Hostiles 10 | . . . . 1 . 1 4 2 . . 1 . . . 1 . . . . . . . . . . . . . Follow-up Attacks 37 | . . . 6 3 . 2 21 2 . . 2 . 1 . . . . . . . . . . . . . . . Damage Inflicted 72280 | 216 2048 273 2447 2098 . 1093 7986 2753 1142 662 1604 5046 132 4774 3528 832 644 . 2032 4918 77 2120 938 2822 1722 5690 8983 5700 Guns 26240 | 216 844 . 30 . . . 124 48 1142 662 720 937 . 926 3035 711 323 . 159 3942 . . 524 404 1594 1794 4813 3292 Cannons 6709 | . 103 207 237 . . . . . . . . . . . 72 121 . . 370 588 . 83 180 1945 . 86 2308 409 Explosions 16624 | . 1101 66 285 531 . 339 102 882 . . . 917 . 638 . . 321 . 1503 . . 2037 234 452 128 3227 1862 1999 Melee 22637 | . . . 1895 1567 . 754 7746 1823 . . 884 3192 132 3210 421 . . . . 368 77 . . . . 568 . . Ramming 70 | . . . . . . . 14 . . . . . . . . . . . . 20 . . . 21 . 15 . . Kinetic 27918 | . 625 207 237 . . . 124 48 1142 662 720 937 . 926 3035 711 323 . 159 3942 . . . 233 1594 1880 7121 3292 Thermal 5172 | 216 322 . . . . . 29 . . . . . . . 72 121 . . 370 588 . 83 102 217 . 644 . 2408 Explosive 11893 | . 1101 66 285 531 . 339 . 882 . . . 917 . 638 . . 321 . 1503 . . 2037 167 309 128 807 1862 . Electromagnetic 246 | . . . 30 . . . 73 . . . . . . . . . . . . . . . . 143 . . . . Impact 14199 | . . . 1311 1080 . 754 7428 1823 . . 679 429 64 . 186 . . . . 368 77 . . . . . . . Slashing 7870 | . . . 584 487 . . 318 . . . 205 2763 68 3210 235 . . . . . . . . . . . . . Piercing . | . . . . . . . . . . . . . . . . . . . . . . . . . . . . . Entropic 4912 | . . . . . . . . . . . . . . . . . . . . . . . 669 1899 . 2344 . . Highest Corruption 21 | . . . . . . . 10 13 1 1 3 17 21 21 . . . . . . . . . 3 4 4 . 2 Average Corruption 10 | . . . . . . . 8 12 1 1 2 6 20 21 . . . . . . . . . 3 3 4 . 2 Corruption Purged 4 | . . . . . . . . . . . . . . . . . . . . . . . . . . 4 . . Corruption Blocked 62 | . . . . . . . . . . . . . . . 2 . . . . 33 . . . 5 . 19 1 2 Effects 246 | . . . . . . . 7 53 1 2 16 30 40 73 . . . . . . . . . . 23 1 . . Message Errors 67 | . . . . . . . 2 18 1 1 3 10 9 17 . . . . . . . . . . 6 . . . Matter Fused 60 | . . . . . . . 1 10 . 1 2 12 7 20 . . . . . . . . . . 7 . . . Heat Flow Errors 27 | . . . . . . . . 4 . . 4 3 7 8 . . . . . . . . . . 1 . . . Energy Discharges 29 | . . . . . . . 2 5 . . 4 1 6 8 . . . . . . . . . . 3 . . . Parts Rejected 1 | . . . . . . . . . . . . . . . . . . . . . . . . . 1 . . . Data Loss (minor) 27 | . . . . . . . 2 5 . . 1 1 5 11 . . . . . . . . . . 2 . . . Data Loss (major) 10 | . . . . . . . . 3 . . 1 . 2 3 . . . . . . . . . . 1 . . . Misfires 10 | . . . . . . . . 2 . . 1 3 2 1 . . . . . . . . . . 1 . . . Alerts 4 | . . . . . . . . 2 . . . . 1 . . . . . . . . . . . . 1 . . Misdirections 1 | . . . . . . . . . . . . . 1 . . . . . . . . . . . . . . . Weapon Failures 10 | . . . . . . . . 4 . . . . . 5 . . . . . . . . . . 1 . . . Overload Shots . | . . . . . . . . . . . . . . . . . . . . . . . . . . . . . Overflow Damage 7051 | . 20 . 445 573 . 307 2779 546 . . 282 207 28 115 118 21 8 . 164 192 77 15 . 307 . 384 194 269 Projectiles 574 | . 4 . . . . . . . . . . . . . 13 21 . . 77 12 . . . 275 . . 55 117 Explosions 779 | . 16 . 7 . . 38 . 46 . . . 20 . 14 . . 8 . 87 . . 15 . 32 . 205 139 152 Melee 5698 | . . . 438 573 . 269 2779 500 . . 282 187 28 101 105 . . . . 180 77 . . . . 179 . . Knockbacks 62 | . . 3 6 1 . . 23 4 . . 2 . . . 1 . . . . 1 . . . 2 . 2 17 . Impact 36 | . . . 6 1 . . 21 4 . . 2 . . . 1 . . . . 1 . . . . . . . . Kinetic 24 | . . 3 . . . . . . . . . . . . . . . . . . . . . 2 . 2 17 . Secondary 2 | . . . . . . . 2 . . . . . . . . . . . . . . . . . . . . . Self-Inflicted Damage 610 | . 18 . . 28 . 37 . 55 . . . 146 . 13 . . 19 . 13 . . . . 207 . . . 74 Shots 19 | . 1 . . 2 . 2 . 2 . . . 4 . 1 . . 1 . 1 . . . . 4 . . . 1 Rammed 7 | . . . . . . . 2 1 . . . . . . . . . . . 2 . . . 1 . 1 . . Targets Rammed 7 | . . . . . . . 2 1 . . . . . . . . . . . 2 . . . 1 . 1 . . Kicked . | . . . . . . . . . . . . . . . . . . . . . . . . . . . . . Crushed . | . . . . . . . . . . . . . . . . . . . . . . . . . . . . . Highest Temperature 391 | 126 198 12 42 36 . . 10 267 241 71 210 264 242 267 144 245 391 . 252 376 58 159 222 18 156 246 312 53 Average Temperature 66 | 38 36 4 7 16 . . 5 84 69 25 85 74 96 85 35 88 211 . 97 91 31 66 131 12 77 26 97 22 Received Heat Transfer 4960 | . 273 . 252 226 . 54 765 297 51 . . 244 . 132 285 135 261 . 81 25 . 39 . 94 235 198 741 572 Effects 13 | . . . . . . . . . . . . . . 1 . . 5 . . 5 . . 2 . . . . . Shutdowns 3 | . . . . . . . . . . . . . . . . . 2 . . 1 . . . . . . . . Energy Bleed 1 | . . . . . . . . . . . . . . 1 . . . . . . . . . . . . . . Interference 8 | . . . . . . . . . . . . . . . . . 2 . . 4 . . 2 . . . . . Damage (minor) 1 | . . . . . . . . . . . . . . . . . 1 . . . . . . . . . . . Siege Activations 75 | . . . . . . . . . . . . . . 9 9 3 1 . 3 14 . . 1 3 5 10 16 1 Total Turns 1598 | . . . . . . . . . . . . . . 169 132 65 19 . 104 281 . . 4 38 153 199 362 72 Longest Duration 77 | . . . . . . . . . . . . . . 34 36 41 19 . 77 48 . . 4 14 49 50 56 72 Martial Activations . | . . . . . . . . . . . . . . . . . . . . . . . . . . . . . Shielding Activations . | . . . . . . . . . . . . . . . . . . . . . . . . . . . . . Robots Disrupted . | . . . . . . . . . . . . . . . . . . . . . . . . . . . . . Combat Hostiles . | . . . . . . . . . . . . . . . . . . . . . . . . . . . . . Robots Corrupted 54 | . . . 4 2 . 2 33 8 . . 1 . . . 1 . . . . 2 1 . . . . . . . Combat Hostiles 30 | . . . 1 1 . 1 21 6 . . . . . . . . . . . . . . . . . . . . Parts Fried 72 | . . . 9 3 . 3 34 11 . . 2 . . . 2 . . . . 5 2 . . 1 . . . . Impact Corruptions 165 | . . . 15 12 . 8 90 19 . . 7 1 . . 3 . . . . 6 4 . . . . . . . Robots Melted 3 | . . . . . . . . . . . . . . . . . . . . . . . . . . . . 3 Combat Hostiles 2 | . . . . . . . . . . . . . . . . . . . . . . . . . . . . 2 Parts Melted 18 | . . . . . . . . . . . . . . . . . . . 2 4 . . . . . . . 12 Heat Transferred 6258 | 500 736 . . . . . 50 . . . . . . . 74 148 . . 444 887 . 126 50 272 . 450 . 2521 Parts Sabotaged 2 | . . . . . . . . . . . . . . . . . . . . . . . . . . . . 2 Parts Stolen . | . . . . . . . . . . . . . . . . . . . . . . . . . . . . . Parts Stripped . | . . . . . . . . . . . . . . . . . . . . . . . . . . . . . Power Chain Reactions 2 | . . . . . . . 1 . . . 1 . . . . . . . . . . . . . . . . . Alert | -11 -10 -10 -9 -9 -9 -8 -8 -8 -7 -7 -7 -7 -7 -7 -6 -6 -6 -6 -5 -5 -5 -5 -4 -4 -4 -4 -4 -3 ------- Run | Yrd Mat Min Mat Min Exi Min Mat Gar Fac Was Fac Gar Fac Gar Fac Low Low Dat Pro Fac Upp War Pro Fac Gar Fac Gar Res Maximum Alert Level 5 | . 1 . 1 . . . 3 4 3 1 . 3 2 3 2 . . . . 3 . . . 1 3 4 5 5 Low Security (%) 43 | 100 36 100 84 100 . 100 51 . . 90 100 23 18 7 1 . . . . 63 . . . 75 5 . . . Level 1 21 | . 63 . 15 . . . 18 . . 9 . 16 59 15 81 . . . . 10 . . . 24 28 27 . . Level 2 17 | . . . . . . . 25 10 55 . . 25 22 34 16 . . . . 19 . . . . 49 55 . . Level 3 9 | . . . . . . . 4 30 44 . . 34 . 42 . . . . . 7 . . . . 16 14 28 . Level 4 4 | . . . . . . . . 59 . . . . . . . . . . . . . . . . . 1 25 82 Level 5 3 | . . . . . . . . . . . . . . . . . . . . . . . . . . . 46 17 High Security . | . . . . . . . . . . . . . . . . . . . . . . . . . . . . . Max Security . | . . . . . . . . . . . . . . . . . . . . . . . . . . . . . Sterilizations 1 | . . . . . . . 1 . . . . . . . . . . . . . . . . . . . . . Peak Influence 2525 | 10 350 96 233 141 . 174 955 1538 903 204 194 877 459 1002 525 . . . . 754 . . . 264 1070 1103 2525 1915 Initial 1419 | . . 96 1 31 . . . 619 807 204 65 26 459 107 525 . . . . 14 . . . . 142 561 770 1419 Average 396 | . 192 13 81 35 . 44 298 1109 736 152 63 472 302 638 334 . . . . 240 . . . 73 548 560 1474 1446 Influence Increases 16804 | 35 732 110 890 325 . 355 1817 999 310 . 400 957 51 895 645 220 120 . 534 1186 . 225 130 581 938 1528 1835 986 Destroy 0b10 Robot/C 8100 | . 420 60 440 180 . 200 1060 440 180 . 140 440 . 400 360 160 80 . 380 540 . 220 100 220 280 600 860 340 Destroy 0b10 Robot/NC 930 | 35 75 30 50 30 . 10 115 20 20 . 35 45 . 50 50 . . . 5 75 . 5 10 35 30 95 . 110 Destroy Leader 1404 | . 88 10 142 40 . 30 240 20 64 . 50 30 . 30 104 30 10 . 10 124 . . 20 54 10 156 80 62 Allied During Kill 156 | . . 2 48 . . . . 7 14 . . . . . . . . . 34 . . . . . . 44 7 . Trap Triggered on 0b10 10 | . . . . . . . . . 10 . . . . . . . . . . . . . . . . . . . Successful Hack 401 | . 23 . 69 . . . 39 . 18 . 26 . 46 14 28 . . . . 54 . . . 17 . 57 10 . Select Force Hacks 180 | . 30 . 60 . . . 30 . . . . . . . . . . . . 60 . . . . . . . . Disable Machine 675 | . . . 15 . . . 45 75 . . 75 15 . 15 30 . . . . 60 . . . 105 15 165 30 30 Anti-Garrison Action 1950 | . . . . . . . . 300 . . . 200 . 250 . . . . . . . . . . 300 150 600 150 Destroy Structure 1843 | . 66 8 36 30 . 25 18 77 4 . 59 182 5 121 43 . . . . 228 . . . 150 183 246 218 144 Partial Spotted 45 | . . . . . . . . . . . . . . . . . . . . 15 . . . . . . 15 15 Lose Combat Pursuer 1110 | . 30 . 30 45 . 90 270 60 . . 15 45 . 15 30 30 30 . 105 30 . . . . 120 15 15 135 Influence Decreases 14917 | 35 485 351 813 311 97 355 864 414 1265 489 456 118 774 47 1214 653 94 26 511 455 550 250 309 378 71 1497 411 1624 Entered New Map 5598 | . . 151 5 52 97 . . 334 731 379 29 12 418 47 477 161 . 26 . 9 280 204 179 . 61 509 331 1106 Time Decay 7447 | 35 465 200 571 219 . 355 614 . 334 100 364 . 356 . 717 492 84 . 451 406 270 46 108 354 . 668 . 238 Lost Part 926 | . 20 . . 40 . . 100 80 10 10 . 80 . . 20 . 10 . 20 30 . . 22 24 10 130 40 280 Lost Ally 283 | . . . 87 . . . . . 40 . . 26 . . . . . . 40 10 . . . . . 40 40 . Purge Threat 663 | . . . 150 . . . 150 . 150 . 63 . . . . . . . . . . . . . . 150 . . Squads Dispatched 93 | . 4 . 3 . . . 10 . 4 . 4 . 3 . 9 . . . 1 20 . . . 7 . 13 . 15 Investigation 17 | . 2 . 2 . . . 2 . . . . . 1 . . . . . . 4 . . . 2 . 3 . 1 Extermination 29 | . . . . . . . . . 1 . 3 . 1 . 5 . . . . 9 . . . 5 . 4 . 1 Reinforcement 22 | . 2 . 1 . . . 1 . . . 1 . 1 . 4 . . . . 4 . . . . . 4 . 4 Assault 14 | . . . . . . . 1 . . . . . . . . . . . 1 3 . . . . . 2 . 7 Garrison 11 | . . . . . . . 6 . 3 . . . . . . . . . . . . . . . . . . 2 Intercept . | . . . . . . . . . . . . . . . . . . . . . . . . . . . . . Searches Triggered . | . . . . . . . . . . . . . . . . . . . . . . . . . . . . . Unchained Authorized 1 | . . . . . . . . . . . . . . . . . . . . . . . . . . 1 . . Data Miner Redirects 8 | . . . . . . . . . . . . . . . . . . . . 2 . . . 2 . . . 4 Construction Impeded 5 | . . . . . . . . . . . 1 . . . . . . . . 1 . . . . . 2 . 1 Haulers Reinforced 2 | . . . . . . . . . . . . . . . . . . . . 1 . . . . . 1 . . Active Scanning Responses . | . . . . . . . . . . . . . . . . . . . . . . . . . . . . . Cargo Convoy Interrupts 1 | . . . . . . . . . . . . . . . . . . . . 1 . . . . . . . . Stealth | -11 -10 -10 -9 -9 -9 -8 -8 -8 -7 -7 -7 -7 -7 -7 -6 -6 -6 -6 -5 -5 -5 -5 -4 -4 -4 -4 -4 -3 --------- Run | Yrd Mat Min Mat Min Exi Min Mat Gar Fac Was Fac Gar Fac Gar Fac Low Low Dat Pro Fac Upp War Pro Fac Gar Fac Gar Res Distress Signals 33 | . 1 . 3 . . . 10 . 1 . 3 . . . 2 . . . 1 2 . . . 1 . 4 . 5 Communications Jammed 132 | . . . . . . . . . . . . . . . . . . . . 2 . . 1 23 . 3 . 103 Distress Signals 129 | . . . . . . . . . . . . . . . . . . . . 1 . . . 22 . 3 . 103 Times Spotted 637 | . 32 3 32 22 . 13 78 22 13 6 14 25 3 15 29 10 9 . 23 32 . 42 5 25 21 57 46 60 Peak Tracking Total 18 | . 7 3 3 5 . 4 8 7 3 5 4 5 1 5 5 3 4 . 9 3 . 8 3 8 8 15 9 18 Tactical Retreats 48 | . 1 . 2 2 . 3 11 4 . . 1 1 . 1 2 1 1 . 2 2 . . . . 5 7 1 1 Traps | -11 -10 -10 -9 -9 -9 -8 -8 -8 -7 -7 -7 -7 -7 -7 -6 -6 -6 -6 -5 -5 -5 -5 -4 -4 -4 -4 -4 -3 ------- Run | Yrd Mat Min Mat Min Exi Min Mat Gar Fac Was Fac Gar Fac Gar Fac Low Low Dat Pro Fac Upp War Pro Fac Gar Fac Gar Res Traps Triggered 36 | . 4 . . . . . 1 4 1 . 5 2 4 5 2 . . . . . . . . 2 . 2 2 2 Indirectly 4 | . . . . . . . . . . . 4 . . . . . . . . . . . . . . . . . Trap Hack Attempts . | . . . . . . . . . . . . . . . . . . . . . . . . . . . . . Triggered . | . . . . . . . . . . . . . . . . . . . . . . . . . . . . . Disarmed . | . . . . . . . . . . . . . . . . . . . . . . . . . . . . . Reprogrammed . | . . . . . . . . . . . . . . . . . . . . . . . . . . . . . Reused 6 | . . . . . . . . . 1 . . . . . . . . . 5 . . . . . . . . . Traps Extracted . | . . . . . . . . . . . . . . . . . . . . . . . . . . . . . Installed 13 | . . . . . . . . . 3 . . . . . . . . . 10 . . . . . . . . . Triggered 6 | . . . . . . . . . 1 . . . . . . . . . 5 . . . . . . . . . Most Traps Carried 3 | . . . . . . . . 3 3 . . . . . . . . . 2 . . . . . . . . . Machines | -11 -10 -10 -9 -9 -9 -8 -8 -8 -7 -7 -7 -7 -7 -7 -6 -6 -6 -6 -5 -5 -5 -5 -4 -4 -4 -4 -4 -3 ---------- Run | Yrd Mat Min Mat Min Exi Min Mat Gar Fac Was Fac Gar Fac Gar Fac Low Low Dat Pro Fac Upp War Pro Fac Gar Fac Gar Res Machines Disabled 72 | . 1 . 1 . . . 3 10 . . 5 6 . 4 2 . . . . 4 . . . 7 7 12 7 3 Max in Single Turn 5 | . 1 . . . . . 1 2 . . 5 2 . 1 1 . . . . 1 . . . 4 2 4 1 1 Garrison Access 6 | . . . . . . . . . . . . . . . 1 . . . . 3 . . . . . 1 . 1 Garrison Relay 15 | . . . . . . . . 3 . . . 2 . 3 . . . . . . . . . . 3 . 4 . Phase Generator 3 | . . . . . . . . 1 . . . 1 . . . . . . . . . . . . 1 . . . Machines Repaired . | . . . . . . . . . . . . . . . . . . . . . . . . . . . . . Machines Dismantled . | . . . . . . . . . . . . . . . . . . . . . . . . . . . . . Machines Sabotaged . | . . . . . . . . . . . . . . . . . . . . . . . . . . . . . Overloaded Fab Kills . | . . . . . . . . . . . . . . . . . . . . . . . . . . . . . Hacking | -11 -10 -10 -9 -9 -9 -8 -8 -8 -7 -7 -7 -7 -7 -7 -6 -6 -6 -6 -5 -5 -5 -5 -4 -4 -4 -4 -4 -3 --------- Run | Yrd Mat Min Mat Min Exi Min Mat Gar Fac Was Fac Gar Fac Gar Fac Low Low Dat Pro Fac Upp War Pro Fac Gar Fac Gar Res Machines Accessed 126 | . 9 1 15 . 2 . 13 . 5 . 6 2 8 2 19 . 1 3 . 16 1 3 . 7 . 9 2 2 Terminals 60 | . 6 . 11 . . . 8 . 2 . 1 2 4 2 9 . 1 . . 3 1 . . 2 . 5 2 1 Fabricators 7 | . . . . . . . . . 1 . 1 . 1 . . . . . . 2 . . . 1 . 1 . . Repair Stations 14 | . 1 . 1 . . . 1 . 1 . . . 1 . 1 . . . . 4 . . . 2 . 2 . . Recycling Units 17 | . 2 . 2 . . . 2 . 1 . 2 . . . 5 . . . . 3 . . . . . . . . Scanalyzers 6 | . . . 1 . . . 1 . . . 1 . 1 . 1 . . . . 1 . . . . . . . . Garrison Access 13 | . . . . . . . 1 . . . 1 . 1 . 3 . . . . 3 . . . 2 . 1 . 1 Total Hacks 369 | . 31 1 52 . 2 . 35 . 10 . 14 4 21 3 36 . 1 23 . 70 2 7 . 19 . 28 2 8 Successful 223 | . 17 1 32 . 2 . 20 . 7 . 11 1 11 1 8 . 1 23 . 50 2 7 . 13 . 14 2 . Failed 145 | . 14 . 20 . . . 14 . 3 . 3 3 10 2 28 . . . . 20 . . . 6 . 14 . 8 Catastrophic 16 | . 1 . 1 . . . 1 . . . . 1 4 . 4 . . . . 2 . . . . . 2 . . Database Lockouts 1 | . . . . . . . 1 . . . . . . . . . . . . . . . . . . . . . Manual 144 | . 17 . 29 . 1 . 23 . 4 . 1 . 10 . 17 . . . . 13 . 1 . 7 . 16 . 5 Terminals 185 | . 18 . 38 . . . 25 . 6 . 3 4 14 3 20 . 1 . . 15 2 . . 10 . 19 2 5 Fabricators 10 | . . . . . . . . . 1 . 1 . 2 . . . . . . 2 . . . 2 . 2 . . Repair Stations 60 | . 7 . 6 . . . 2 . 2 . . . 2 . 2 . . . . 31 . . . 4 . 4 . . Recycling Units 37 | . 6 . 6 . . . 5 . 1 . 5 . . . 7 . . . . 7 . . . . . . . . Scanalyzers 19 | . . . 2 . . . 2 . . . 3 . 2 . 2 . . . . 8 . . . . . . . . Garrison Access 25 | . . . . . . . 1 . . . 2 . 1 . 5 . . . . 7 . . . 3 . 3 . 3 Terminal Hacks 77 | . 1 1 13 . 2 . 5 . 1 . 1 1 4 1 1 . 1 23 . 5 2 7 . 3 . 3 2 . Record 13 | . . . . . 1 . . . . . . . . . . . 1 2 . . 2 6 . 1 . . . . Part Schematic 11 | . . . . . . . . . . . . . . . . . . 11 . . . . . . . . . . Robot Schematic 7 | . . . . . . . . . . . . . . . . . . 7 . . . . . . . . . . Robot Analysis 8 | . 1 . 5 . . . 1 . . . . . 1 . . . . . . . . . . . . . . . Prototype ID Bank 10 | . . . 5 . . . 1 . . . . . . . . . . 3 . 1 . . . . . . . . Open Door 3 | . . 1 . . . . . . . . . 1 . . . . . . . . . 1 . . . . . . Branch Access Points 3 | . . . . . . . . . . . . . . . 1 . . . . 1 . . . . . 1 . . Emergency Access Points 2 | . . . . . . . . . . . . . . 1 . . . . . . . . . . . . 1 . Terminal Index 3 | . . . . . . . 1 . . . . . 1 . . . . . . 1 . . . . . . . . Garrison Index 1 | . . . . . . . . . . . . . . . . . . . . . . . . . . 1 . . Unreport Threat 5 | . . . 1 . . . 1 . 1 . 1 . . . . . . . . . . . . . . 1 . . Locate Traps 5 | . . . 1 . . . 1 . . . . . 1 . . . . . . 1 . . . 1 . . . . Hauler Manifests 1 | . . . . . . . . . . . . . 1 . . . . . . . . . . . . . . . Zone Layout 3 | . . . 1 . . . . . . . . . . . . . . . . 1 . . . 1 . . . . Security Stations 1 | . . . . . . . . . . . . . . . . . . . . . . . . . . . 1 . Proto ID Catalog 1 | . . . . . 1 . . . . . . . . . . . . . . . . . . . . . . . Fabricator Hacks 8 | . . . . . . . . . 1 . 1 . . . . . . . . 2 . . . 2 . 2 . . Network Status 3 | . . . . . . . . . 1 . 1 . . . . . . . . 1 . . . . . . . . Load Schematic 2 | . . . . . . . . . . . . . . . . . . . . . . . . 1 . 1 . . Build 3 | . . . . . . . . . . . . . . . . . . . . 1 . . . 1 . 1 . . Repair Station Hacks 49 | . 7 . 6 . . . 2 . 2 . . . 1 . . . . . . 25 . . . 3 . 3 . . Scan Component 27 | . 4 . 3 . . . 1 . 1 . . . 1 . . . . . . 13 . . . 2 . 2 . . Repair 22 | . 3 . 3 . . . 1 . 1 . . . . . . . . . . 12 . . . 1 . 1 . . Recycling Unit Hacks 13 | . . . 1 . . . 2 . 1 . 5 . . . 1 . . . . 3 . . . . . . . . Recycle Component 1 | . . . . . . . . . . . 1 . . . . . . . . . . . . . . . . . Process 1 | . . . . . . . . . . . 1 . . . . . . . . . . . . . . . . . Report Inventory 1 | . . . . . . . . . . . 1 . . . . . . . . . . . . . . . . . Retrieve Matter 1 | . . . . . . . . . . . 1 . . . . . . . . . . . . . . . . . Retrieve Components 9 | . . . 1 . . . 2 . 1 . 1 . . . 1 . . . . 3 . . . . . . . . Scanalyzer 14 | . . . 2 . . . 1 . . . 2 . 1 . 2 . . . . 6 . . . . . . . . Insert Component 1 | . . . . . . . . . . . . . . . . . . . . 1 . . . . . . . . Analyze 1 | . . . . . . . . . . . . . . . . . . . . 1 . . . . . . . . Retrieve Study 12 | . . . 2 . . . 1 . . . 2 . 1 . 2 . . . . 4 . . . . . . . . Garrison Access Hacks 8 | . . . . . . . 1 . . . 1 . 1 . 1 . . . . 2 . . . 1 . 1 . . Unlock Access 5 | . . . . . . . 1 . . . 1 . 1 . . . . . . . . . . 1 . 1 . . Seal Access 3 | . . . . . . . . . . . . . . . 1 . . . . 2 . . . . . . . . Unauthorized Hacks 54 | . 9 . 10 . . . 9 . 2 . 1 . 4 . 3 . . . . 7 . . . 4 . 5 . . Terminals 45 | . 8 . 8 . . . 7 . 2 . 1 . 4 . 3 . . . . 3 . . . 4 . 5 . . Track 1 | . . . . . . . . . . . . . . . . . . . . . . . . 1 . . . . Assimilate 4 | . . . 1 . . . 2 . . . . . 1 . . . . . . . . . . . . . . . Botnet 19 | . 2 . 2 . . . 1 . 1 . 1 . 1 . 3 . . . . 2 . . . 2 . 4 . . Operators 2 | . 1 . . . . . . . . . . . . . . . . . . . . . . . . 1 . . Skim 19 | . 5 . 5 . . . 4 . 1 . . . 2 . . . . . . 1 . . . 1 . . . . Fabricators . | . . . . . . . . . . . . . . . . . . . . . . . . . . . . . Repair Stations . | . . . . . . . . . . . . . . . . . . . . . . . . . . . . . Recycling Units 9 | . 1 . 2 . . . 2 . . . . . . . . . . . . 4 . . . . . . . . Reject 1 | . . . . . . . . . . . . . . . . . . . . 1 . . . . . . . . Recyclers 1 | . . . . . . . . . . . . . . . . . . . . 1 . . . . . . . . Mask 1 | . . . . . . . 1 . . . . . . . . . . . . . . . . . . . . . Tunnel 6 | . 1 . 2 . . . 1 . . . . . . . . . . . . 2 . . . . . . . . Scanalyzers . | . . . . . . . . . . . . . . . . . . . . . . . . . . . . . Garrison Access . | . . . . . . . . . . . . . . . . . . . . . . . . . . . . . Data Cores Recovered . | . . . . . . . . . . . . . . . . . . . . . . . . . . . . . Used . | . . . . . . . . . . . . . . . . . . . . . . . . . . . . . Hacking Detections 99 | . 8 . 13 . . . 10 . 4 . 5 1 7 1 18 . 1 . . 13 . . . 6 . 9 1 2 Full Trace Events 11 | . 2 . . . . . . . . . . 1 1 . . . . . . 2 . . . 2 . 2 . 1 Feedback Events 3 | . . . . . . . . . . . . 1 . . . . . . . . . . . . . . . 2 Corruption 2 | . . . . . . . . . . . . 1 . . . . . . . . . . . . . . . 1 Hackware Fried 1 | . . . . . . . . . . . . . . . . . . . . . . . . . . . . 1 Feedback Blocked . | . . . . . . . . . . . . . . . . . . . . . . . . . . . . . Robot Schematics Acquired 7 | . . . . . . . . . . . . . . . . . . 7 . . . . . . . . . . Robots Built 2 | . . . . . . . . . . . . . . . . . . . . 2 . . . . . . . . Authchips . | . . . . . . . . . . . . . . . . . . . . . . . . . . . . . Time 27 | . . . . . . . . . . . . . . . . . . . . 27 . . . . . . . . Total Robot Build Rating 2 | . . . . . . . . . . . . . . . . . . . . 2 . . . . . . . . Part Schematics Acquired 12 | . . . . . . . . . . . . . . . . . . 11 . 1 . . . . . . . . Parts Built 4 | . . . . . . . . . . . . . . . . . . . . . . . . 2 . 2 . . Authchips . | . . . . . . . . . . . . . . . . . . . . . . . . . . . . . Time 212 | . . . . . . . . . . . . . . . . . . . . . . . . 106 . 106 . . Total Part Build Rating 24 | . . . . . . . . . . . . . . . . . . . . . . . . 12 . 12 . . Part Studies Acquired 12 | . . . 2 . . . 1 . . . 2 . 1 . 2 . . . . 4 . . . . . . . . Parts Repaired 21 | . 3 . 3 . . . 1 . 1 . . . . . . . . . . 12 . . . . . 1 . . Time 950 | . 90 . 102 . . . 30 . 26 . . . . . . . . . . 622 . . . 31 . 49 . . Parts Recycled 1 | . . . . . . . . . . . 1 . . . . . . . . . . . . . . . . . Recycled Matter 48 | . . . . . . . . . . . 48 . . . . . . . . . . . . . . . . . Retrieved Matter 48 | . . . . . . . . . . . 48 . . . . . . . . . . . . . . . . . Retrieved Components 69 | . . . 10 . . . 18 . 9 . 10 . . . 2 . . . . 20 . . . . . . . . Parts Scanalyzed 1 | . . . . . . . . . . . . . . . . . . . . 1 . . . . . . . . Part Schematics Acquired 1 | . . . . . . . . . . . . . . . . . . . . 1 . . . . . . . . Parts Damaged 1 | . . . . . . . . . . . . . . . . . . . . 1 . . . . . . . . Bothacking | -11 -10 -10 -9 -9 -9 -8 -8 -8 -7 -7 -7 -7 -7 -7 -6 -6 -6 -6 -5 -5 -5 -5 -4 -4 -4 -4 -4 -3 ------------ Run | Yrd Mat Min Mat Min Exi Min Mat Gar Fac Was Fac Gar Fac Gar Fac Low Low Dat Pro Fac Upp War Pro Fac Gar Fac Gar Res Used RIF Installer . | . . . . . . . . . . . . . . . . . . . . . . . . . . . . . Robots Hacked 3 | . . . . . 3 . . . . . . . . . . . . . . . . . . . . . . . Non-combat 2 | . . . . . 2 . . . . . . . . . . . . . . . . . . . . . . . Combat 1 | . . . . . 1 . . . . . . . . . . . . . . . . . . . . . . . Robot Hacks Applied 3 | . . . . . 3 . . . . . . . . . . . . . . . . . . . . . . . parse_system 3 | . . . . . 3 . . . . . . . . . . . . . . . . . . . . . . . Relay Couplers Released 80 | . . . . . . . . 17 . . . 13 . 10 . . . . . 2 . . . . 12 3 21 2 Machine Destruction 70 | . . . . . . . . 13 . . . 10 . 10 . . . . . 2 . . . . 12 3 18 2 Programmers 10 | . . . . . . . . 4 . . . 3 . . . . . . . . . . . . . . 3 . Fabnet Peak Effective % . | . . . . . . . . . . . . . . . . . . . . . . . . . . . . . Robots Rewired 7 | . . . . . . . . 2 . . . . . . . . . . 2 . . . . . 3 . . . Allies Hacked . | . . . . . . . . . . . . . . . . . . . . . . . . . . . . . Hacks Repelled . | . . . . . . . . . . . . . . . . . . . . . . . . . . . . . Allies | -11 -10 -10 -9 -9 -9 -8 -8 -8 -7 -7 -7 -7 -7 -7 -6 -6 -6 -6 -5 -5 -5 -5 -4 -4 -4 -4 -4 -3 -------- Run | Yrd Mat Min Mat Min Exi Min Mat Gar Fac Was Fac Gar Fac Gar Fac Low Low Dat Pro Fac Upp War Pro Fac Gar Fac Gar Res Total Allies 20 | . . 5 1 . . . 1 2 . . . 2 . . . . . . 2 2 . . . . 3 . 2 . Largest Group 5 | . . 5 5 1 1 1 2 2 2 . . 2 . . . . . . 2 2 . . . . 3 3 2 . Highest-Rated Group 175 | . . 89 89 10 10 10 20 64 64 . . 50 . . . . . . 98 20 . . . . 136 136 175 . Highest-Rated Ally 95 | . . 31 31 10 10 10 10 39 39 . . 25 . . . . . . 49 10 . . . . 47 47 95 . Initial Warlord ECA Mod 25 | . . . . . . . . . 7 7 7 7 10 10 14 14 14 14 13 13 13 13 12 12 12 18 18 25 Total Orders 55 | . . . 14 6 1 3 13 2 . . . . . . . . . . 2 14 . . . . . . . . STAY 23 | . . . 7 3 . 2 7 1 . . . . . . . . . . 1 2 . . . . . . . . FOLLOW 20 | . . . 7 3 1 1 6 1 . . . . . . . . . . 1 . . . . . . . . . TUNNEL 12 | . . . . . . . . . . . . . . . . . . . . 12 . . . . . . . . Ally Attacks 163 | . . . 69 . . . . 18 15 . . 1 . . . . . . 25 . . . . . . 25 10 . Total Damage 3324 | . . . 750 . . . . 202 179 . . 39 . . . . . . 1061 . . . . . . 610 483 . Kills 25 | . . . 11 . . . . 3 1 . . . . . . . . . 7 . . . . . . 2 1 . Allies Corrupted . | . . . . . . . . . . . . . . . . . . . . . . . . . . . . . Allies Melted 1 | . . . . . . . . . . . . . . . . . . . 1 . . . . . . . . . Intel | -11 -10 -10 -9 -9 -9 -8 -8 -8 -7 -7 -7 -7 -7 -7 -6 -6 -6 -6 -5 -5 -5 -5 -4 -4 -4 -4 -4 -3 ------- Run | Yrd Mat Min Mat Min Exi Min Mat Gar Fac Was Fac Gar Fac Gar Fac Low Low Dat Pro Fac Upp War Pro Fac Gar Fac Gar Res Active Infowar (turns) 31881 | 17 1459 1179 2812 829 611 1362 558 227 . . . . . . 3285 1059 1480 120 2572 4873 596 888 1150 1999 1289 2440 1029 47 Optics 7500 | . . . . . . . . . . . . . . . . . . . . . . 690 1150 1999 1289 2372 . . Sensors 7140 | . . . . . . . . . . . . . . . 2 1045 1478 120 2559 . 593 737 606 . . . . . Terrain 17300 | . 1295 1179 2812 233 . . . . . . . . . . 855 1041 1479 120 1942 2560 596 375 453 912 731 717 . . Seismic 3618 | 17 164 . . 678 611 1362 558 227 . . . . . . . . . . . 1 . . . . . . . . Machine Analysis 3195 | . . . . . . . . . . . . . . . 3185 10 . . . . . . . . . . . . Cloaking 806 | . . . . . . . . . . . . . . . . . . . . . . . 378 428 . . . . Jamming 7158 | . . . . . . . . . . . . . . . . . . . . 3258 . . 6 1887 159 772 1029 47 Robot Analysis Total 7 | . 1 . 5 . . . . . . . . . 1 . . . . . . . . . . . . . . . Derelict Logs Recovered 8 | . . 1 . 1 . . . . . . . . . . . 1 1 . 2 . 1 . 1 . . . . . Drone Launches . | . . . . . . . . . . . . . . . . . . . . . . . . . . . . . Drone Recoveries . | . . . . . . . . . . . . . . . . . . . . . . . . . . . . . Exploration | -11 -10 -10 -9 -9 -9 -8 -8 -8 -7 -7 -7 -7 -7 -7 -6 -6 -6 -6 -5 -5 -5 -5 -4 -4 -4 -4 -4 -3 ------------- Run | Yrd Mat Min Mat Min Exi Min Mat Gar Fac Was Fac Gar Fac Gar Fac Low Low Dat Pro Fac Upp War Pro Fac Gar Fac Gar Res Turns Passed 45534 | 329 1498 1179 2812 829 611 1362 3874 1292 758 211 1201 1099 809 1556 3334 1394 1515 120 2660 5842 598 888 1150 1999 1289 2566 2252 507 Spaces Moved 21320 | 113 672 509 1390 392 372 778 1860 428 396 140 702 472 670 600 1731 705 920 76 1369 2375 364 602 513 840 428 898 759 246 Core 97 | 68 . . . . . . . . . . . . . . . . . . . . . . . . . . . 29 Treads 15911 | 45 672 509 1390 392 372 778 791 329 24 . . . . 386 1248 705 920 76 1369 2375 364 . 109 840 428 898 759 132 Legs . | . . . . . . . . . . . . . . . . . . . . . . . . . . . . . Wheels 5227 | . . . . . . . 1069 99 372 140 702 472 670 214 483 . . . . . . 602 404 . . . . . Hover . | . . . . . . . . . . . . . . . . . . . . . . . . . . . . . Flight 85 | . . . . . . . . . . . . . . . . . . . . . . . . . . . . 85 Fastest Speed 39 | 50 160 160 160 160 160 160 100 145 120 120 110 110 110 110 105 160 160 160 160 160 160 105 120 160 160 160 160 39 Average Speed 153 | 164 160 160 160 160 160 160 136 218 148 120 115 116 110 151 148 160 160 160 160 160 160 119 136 179 160 175 188 128 Slowest Speed 320 | 200 240 160 160 160 160 160 225 305 225 120 125 135 110 240 180 160 160 160 160 240 160 120 240 250 240 270 270 320 Overloaded Moves . | . . . . . . . . . . . . . . . . . . . . . . . . . . . . . Propulsion Burnouts . | . . . . . . . . . . . . . . . . . . . . . . . . . . . . . Robots Hopped 2 | . . . . . . . . . . . . . . . . . . . . . . . . . . . . 2 Potential Cave-ins 21 | . . . . . . . . . . . . . . . 2 . . . . 9 . . . . 3 . 7 . Cave-ins Triggered 2 | . . . . . . . . . . . . 1 . . . . . . . 1 . . . . . . . . Exploration Rate (%) 58 | 7 98 97 97 50 64 80 79 54 12 89 23 54 16 65 48 84 93 68 93 46 48 79 58 21 55 26 67 11 Regions Visited 28 Branch Regions 11 Pre-discovered Areas 13 | . 2 1 4 . 1 . 1 . . . . . . . . 1 . 1 . 2 . . . . . . . . Known Exits Taken 16 | . 1 1 1 . . 1 1 . . . 1 . 1 . 1 1 1 . 1 1 1 . 1 1 . 1 . . Unknown Exits Taken 5 | 1 . . . 1 1 . . . . . . . . . . . . 1 . . . 1 . . . . . . Scrap Searched 17 | . . 3 . 1 . 1 . . . . . . . . . 4 2 . 3 . . . 3 . . . . . Spaces Dug 247 | . 2 . 8 . . 1 13 3 . . 9 25 5 12 33 4 . . 9 50 1 1 1 14 26 25 5 . Terrain Destroyed 1696 | . 82 8 46 54 . 33 15 106 . . 71 174 5 146 51 10 33 . 60 93 2 103 59 77 158 141 99 70 Melee 118 | . . . 8 . . 1 13 2 . . 7 25 5 10 28 . . . . 12 1 . . . 3 3 . . Projectile 346 | . 2 . . . . . . . . . 3 1 . 7 19 7 1 . 5 78 1 2 26 37 40 46 69 2 AOE 1190 | . 80 8 38 54 . 32 2 103 . . 61 148 . 127 . . 32 . 55 . . 101 33 40 102 78 30 66 Terrain Rammed . | . . . . . . . . . . . . . . . . . . . . . . . . . . . . . Walls Destroyed . | . . . . . . . . . . . . . . . . . . . . . . . . . . . . . Machines Disabled . | . . . . . . . . . . . . . . . . . . . . . . . . . . . . . Actions | -11 -10 -10 -9 -9 -9 -8 -8 -8 -7 -7 -7 -7 -7 -7 -6 -6 -6 -6 -5 -5 -5 -5 -4 -4 -4 -4 -4 -3 --------- Run | Yrd Mat Min Mat Min Exi Min Mat Gar Fac Was Fac Gar Fac Gar Fac Low Low Dat Pro Fac Upp War Pro Fac Gar Fac Gar Res Total 30882 | 212 944 849 1847 536 388 869 2898 650 524 158 987 771 731 1030 2272 904 946 75 1800 4049 372 747 936 1254 821 1656 1331 325 Wait 6112 | 66 138 310 318 89 7 70 761 81 42 4 176 67 36 190 314 142 9 . 307 1257 1 33 363 297 176 494 363 1 Move 21293 | 112 671 508 1389 391 371 777 1860 427 396 139 701 471 669 599 1730 704 919 75 1368 2375 363 601 512 840 427 898 758 242 Hop 2 | . . . . . . . . . . . . . . . . . . . . . . . . . . . . 2 Pick Up 340 | 5 17 6 20 4 1 . 23 11 16 . 11 12 4 27 17 2 2 . 19 36 . 18 11 12 14 27 23 2 Fast Attach 207 | 5 16 1 8 2 . . 22 3 5 . 3 10 2 8 15 3 . . 5 30 . 17 3 17 3 15 10 4 Attach 167 | 2 1 . 4 3 2 . 10 8 7 . 2 10 2 13 10 1 1 . 2 16 . 5 8 7 9 20 8 16 Detach 41 | . . . . . . . 1 2 1 . 1 4 1 4 5 . . . . 5 . 2 1 3 . 4 3 4 Swap 364 | . 14 4 8 7 1 3 16 13 2 . 14 20 3 19 36 17 7 . 16 68 5 7 8 6 21 39 10 . Drop 412 | 1 10 7 26 3 1 1 29 1 21 . 12 15 7 35 32 3 . . 21 50 . 38 9 23 13 32 21 1 Fire 1271 | 21 77 13 21 8 . 4 15 47 31 15 44 55 . 62 76 32 8 . 31 191 1 26 21 48 129 117 131 47 Melee 570 | . . . 53 29 5 14 159 45 . . 23 92 7 69 37 . . . . 20 2 . . . 6 9 . . Ram . | . . . . . . . . . . . . . . . . . . . . . . . . . . . . . Kick . | . . . . . . . . . . . . . . . . . . . . . . . . . . . . . Crush 6 | . . . . . . . 2 1 . . . . . . . . . . . 1 . . . 1 . 1 . . Escape Stasis 37 | . . . . . . . . 8 . . . 15 . 4 . . . . . . . . . . . . 4 6 Rewire 47 | . . . . . . . . 3 . . . . . . . . . . 21 . . . . . 23 . . . Trap 13 | . . . . . . . . . 3 . . . . . . . . . 10 . . . . . . . . . Miscellaneous . | . . . . . . . . . . . . . . . . . . . . . . . . . . . . . Route ------- -11/Scrapyard -10/Materials (discovered 6 exits: *Mat x3 / *Min x2 / Sub) -10/Mines (discovered 3 exits: *Mat x2 / *Sub) -9/Materials (discovered 4 exits: *Mat x3 / *Min) -9/Mines (discovered 2 exits: *Mat / *Exi) -9/Exiles -8/Mines (discovered 2 exits: *Mat x2) -8/Materials (discovered 2 exits: *Fac / Gar) -8/Garrison -7/Factory -7/Waste -7/Factory -7/Garrison -7/Factory -7/Garrison (discovered 2 exits: *Fac x2) -6/Factory (discovered 5 exits: *Fac x3 / *Low x2) -6/Lower Caves -6/Lower Caves (discovered 2 exits: *Fac / *Dat) -6/Data Miner -5/Proximity Caves -5/Factory (discovered 5 exits: *Fac / *Upp x2 / *Ext x2) -5/Upper Caves -5/Warlord -4/Proximity Caves -4/Factory -4/Garrison (discovered 2 exits: *Fac x2) -4/Factory (discovered 4 exits: *Res / Upp x2 / Gar) -4/Garrison (discovered 2 exits: *Res x2) -3/Research History --------- Turn | Location | Event 5 | -11/Scrapyard | Discovered new exit (range 16) 330 | -11/Scrapyard | Entered Materials 334 | -10/Materials | Build established: Mutant 666 | -10/Materials | Discovered new exit (range 15) 930 | -10/Materials | Discovered new exit (range 16) 1097 | -10/Materials | Discovered new exit (range 4) 1269 | -10/Materials | Learned 4 Recycling zone layouts 1334 | -10/Materials | Learned location of 1 exit from Recycling 1356 | -10/Materials | Identified exit to Mines 1356 | -10/Materials | Identified exit to Materials 1357 | -10/Materials | Learned Storage emergency access door positions 1359 | -10/Materials | Learned location of 1 exit from Storage 1365 | -10/Materials | Identified exit to Subcaves 1365 | -10/Materials | Learned location of 2 exits from Materials 1383 | -10/Materials | Learned 4 Subcaves zone layouts 1678 | -10/Materials | Repaired Lgt. Treads 1705 | -10/Materials | Repaired Lgt. Treads 1745 | -10/Materials | Repaired Lgt. Nuclear Core 1828 | -10/Materials | Entered Mines 2144 | -10/Mines | Met a Derelict who couldn't figure out how to use a Trap Extractor 2889 | -10/Mines | Discovered exit to Materials (range 11) 2915 | -10/Mines | Discovered exit to Materials (range 14) 2929 | -10/Mines | Assisted by bots powering up and referring to "LRC-V3" 2964 | -10/Mines | Discovered exit to Subcaves (range 12) 3007 | -10/Mines | Entered Materials 3007 | -9/Materials | Accompanied by 5 allies 3007 | -9/Materials | Evolved 2 slots: Propulsion x1, Utility x1 3008 | -9/Materials | Identified exit to Materials 3012 | -9/Materials | Led the pair of lost Derelicts to an unsafe place 3647 | -9/Materials | Discovered exit to Materials (range 15) 4215 | -9/Materials | Identified exit to Mines 4409 | -9/Materials | Learned 4 Recycling zone layouts 4434 | -9/Materials | Learned location of Zion (-7) 4689 | -9/Materials | Build established: Scavenger-Mutant 4921 | -9/Materials | Repaired Katana 4990 | -9/Materials | Repaired Deuterium Engine 5017 | -9/Materials | Repaired Lgt. Treads 5469 | -9/Materials | Build established: Mutant 5819 | -9/Materials | Entered Mines 5819 | -9/Mines | Accompanied by 1 ally 5820 | -9/Mines | Assembled infested the area 5893 | -9/Mines | Met a Derelict bent on vengeance 5901 | -9/Mines | Destroyed 11 combat bots 6111 | -9/Mines | Lost 3 parts (1p1n1u) 6165 | -9/Mines | Found a hidden stash of uninstalled traps 6335 | -9/Mines | Learned Materials garrison access intel 6399 | -9/Mines | Build established: Scavenger-Mutant 6435 | -9/Mines | Discovered exit to Materials (range 9) 6523 | -9/Mines | Core integrity fell below 50% 6629 | -9/Mines | Deemed a non-threat by the Exiles lab entrance 6629 | -9/Mines | Discovered new exit (range 5) 6648 | -9/Mines | Entered Exiles 6648 | -9/Exiles | Accompanied by 1 ally 6688 | -9/Exiles | Met 8R-AWN 6712 | -9/Exiles | Met EX-HEX 6761 | -9/Exiles | Met EX-BIN 6781 | -9/Exiles | Aligned with FarCom system 6782 | -9/Exiles | Given EX-Vault access code 6819 | -9/Exiles | Opened EX-Vault 6832 | -9/Exiles | Found YOLO Cannon 6865 | -9/Exiles | Warned to stay clear of 0b10 Research branches 6908 | -9/Exiles | Met EX-DEC 7129 | -9/Exiles | Build established: Mutant 7239 | -9/Exiles | Discovered new exit (range 10) 7259 | -9/Exiles | Left Exiles lab with YOLO Cannon 7259 | -9/Exiles | Entered Mines 7259 | -8/Mines | Accompanied by 1 ally 7316 | -8/Mines | Destroyed 7 combat bots 7839 | -8/Mines | Discovered exit to Materials (range 15) 8318 | -8/Mines | Discovered exit to Materials (range 7) 8621 | -8/Mines | Entered Materials 8621 | -8/Materials | Accompanied by 1 ally 8621 | -8/Materials | Evolved 2 slots: Propulsion x1, Utility x1 8622 | -8/Materials | Loaded intel: 1 garrison access location 9323 | -8/Materials | Build established: Gladiator 9478 | -8/Materials | Central database locked down 9991 | -8/Materials | Repaired Corrupted Gauss Rifle 10176 | -8/Materials | Discovered new exit (range 15) 11718 | -8/Materials | Garrison activated, responded to threat 11774 | -8/Materials | Destroyed 7 combat bots 12157 | -8/Materials | Garrison activated, responded to threat 12221 | -8/Materials | First assault squad dispatched 12333 | -8/Materials | System corruption reached 10% 12402 | -8/Materials | Sterilization system engaged 12402 | -8/Materials | Non-combat units ordered to evacuate 12495 | -8/Materials | Identified exit to Garrison 12495 | -8/Materials | Entered Garrison 12622 | -8/Garrison | Triggered checkpoint 12713 | -8/Garrison | Destroyed 7 combat bots 12843 | -8/Garrison | Triggered checkpoint 12847 | -8/Garrison | Core integrity fell below 50% 12925 | -8/Garrison | Garrison Relay disabled 13019 | -8/Garrison | Phase Generator disabled 13139 | -8/Garrison | Triggered checkpoint 13199 | -8/Garrison | Lost 3 parts (2n1w) 13277 | -8/Garrison | Discovered new exit (range 13) 13309 | -8/Garrison | Build established: Mutant 13485 | -8/Garrison | Triggered checkpoint 13513 | -8/Garrison | Garrison Relay disabled 13517 | -8/Garrison | Garrison Relay disabled 13787 | -8/Garrison | Entered Factory 13787 | -7/Factory | Accompanied by 2 allies 13787 | -7/Factory | Evolved 2 slots: Utility x1, Weapon x1 13810 | -7/Factory | Garrison activated, responded to threat 13997 | -7/Factory | Repaired Corrupted Katana 14540 | -7/Factory | Build established: Scavenger-Tank 14545 | -7/Factory | Sucked down chute 14545 | -7/Factory | Entered Waste 14553 | -7/Waste | Spotted C-40 Crusher 14558 | -7/Waste | Spotted C-40 Crusher 14600 | -7/Waste | Crushed by Compactor (0 parts destroyed, 1 dropped) 14612 | -7/Waste | Spotted C-40 Crusher 14621 | -7/Waste | Destroyed C-40 Crusher 14659 | -7/Waste | Spotted C-40 Crusher 14670 | -7/Waste | Spotted C-40 Crusher 14688 | -7/Waste | Crushed by Compactor (1 part destroyed, 1 dropped) 14716 | -7/Waste | Spotted C-40 Crusher 14738 | -7/Waste | Discovered new exit (range 15) 14756 | -7/Waste | Entered Factory 15065 | -7/Factory | Build established: Hacker-Skirmisher 15640 | -7/Factory | Build established: Hacker-Mutant 15953 | -7/Factory | Identified exit to Garrison 15957 | -7/Factory | Entered Garrison 15976 | -7/Garrison | Rescued a captive Derelict 15978 | -7/Garrison | Rescued a captive Derelict 16258 | -7/Garrison | Triggered checkpoint 16324 | -7/Garrison | Triggered checkpoint 16428 | -7/Garrison | Triggered checkpoint 16453 | -7/Garrison | Triggered checkpoint 16473 | -7/Garrison | Lost 4 parts (1p2n1u) 16487 | -7/Garrison | Destroyed 8 combat bots 16676 | -7/Garrison | Garrison Relay disabled 16726 | -7/Garrison | Discovered new exit (range 4) 16895 | -7/Garrison | Crushed by falling debris 16895 | -7/Garrison | System corruption reached 10% 16926 | -7/Garrison | Lost 3 parts (2u1w) 16973 | -7/Garrison | Phase Generator disabled 17056 | -7/Garrison | Entered Factory 17248 | -7/Factory | Build established: Scavenger-Tank 17563 | -7/Factory | Allied Derelicts emerged from ambush trap array 17611 | -7/Factory | Build established: Scavenger-Mutant 17852 | -7/Factory | Identified exit to Garrison 17865 | -7/Factory | Entered Garrison 17989 | -7/Garrison | Garrison Relay disabled 18018 | -7/Garrison | Triggered checkpoint 18208 | -7/Garrison | Triggered checkpoint 18327 | -7/Garrison | Discovered new exit (range 10) 18386 | -7/Garrison | Triggered checkpoint 18436 | -7/Garrison | Garrison Relay disabled 18497 | -7/Garrison | Build established: Scavenger-Tank 18607 | -7/Garrison | Triggered checkpoint 18902 | -7/Garrison | Triggered checkpoint 18970 | -7/Garrison | Discovered new exit (range 11) 19058 | -7/Garrison | Triggered checkpoint 19421 | -7/Garrison | Entered Factory 19421 | -6/Factory | Evolved 2 slots: Propulsion x2 19442 | -6/Factory | Build established: Hauler-Mutant 20250 | -6/Factory | Discovered new exit (range 9) 20330 | -6/Factory | Identified exit to Factory 20724 | -6/Factory | Discovered new exit (range 4) 20749 | -6/Factory | Identified exit to Lower Caves 20908 | -6/Factory | Discovered exit to Factory (range 13) 21236 | -6/Factory | Discovered exit to Factory (range 8) 21250 | -6/Factory | Build established: Hauler-Tank 22755 | -6/Factory | Entered Lower Caves 22756 | -6/Lower Caves | Encountered a Warlord checkpoint 22770 | -6/Lower Caves | Met a Warlord Commander 22771 | -6/Lower Caves | Learned location of Warlord (-5) 22772 | -6/Lower Caves | Warlord Commander delivered Encrypted Comm Array 22958 | -6/Lower Caves | Found Alien Artifact 22958 | -6/Lower Caves | Identified Core Expander 22958 | -6/Lower Caves | Installed Core Expander, added new Power slot 23058 | -6/Lower Caves | Build established: Hauler-Skirmisher 23219 | -6/Lower Caves | Identified exit to Lower Caves 24149 | -6/Lower Caves | Entered another Lower Caves area 24214 | -6/Lower Caves | Discovered exit to Factory (range 8) 24584 | -6/Lower Caves | Identified exit to Data Miner 25664 | -6/Lower Caves | Entered Data Miner 25664 | -6/Data Miner | Discovered new exit (range 6) 25695 | -6/Data Miner | Met Data Miner 25722 | -6/Data Miner | Acquired the access code to Warlord's prototype stash 25722 | -6/Data Miner | Learned location of Section 7 (-2) 25749 | -6/Data Miner | Received God Mode back door access code from Data Miner 25784 | -6/Data Miner | Entered Proximity Caves 26022 | -5/Proximity Caves | Attracted the attention of an 0b10 outpost 26061 | -5/Proximity Caves | Destroyed 9 combat bots 26608 | -5/Proximity Caves | Learned Factory garrison access intel 26654 | -5/Proximity Caves | Attracted the attention of an 0b10 checkpoint 26877 | -5/Proximity Caves | Discovered exit to Factory (range 7) 27060 | -5/Proximity Caves | Learned Factory trap positions 27640 | -5/Proximity Caves | Build established: Hauler-Tank 28345 | -5/Proximity Caves | Build established: Hauler-Skirmisher 28444 | -5/Proximity Caves | Entered Factory 28444 | -5/Factory | Evolved 2 slots: Utility x2 28445 | -5/Factory | Loaded intel: 68 trap records 28446 | -5/Factory | Loaded intel: 4 garrison access locations 28642 | -5/Factory | Incoming investigation squad redirected 28740 | -5/Factory | Build established: Hauler-Tank 28765 | -5/Factory | Repaired Broken Imp. Heavy Treads? 30096 | -5/Factory | Repaired Imp. Heavy Treads 30112 | -5/Factory | Incoming investigation squad redirected 30128 | -5/Factory | Repaired Imp. Heavy Treads 30169 | -5/Factory | Build established: Hauler-Mutant 30796 | -5/Factory | Build established: Hauler-Tank 30806 | -5/Factory | Repaired Imp. Heavy Treads 30857 | -5/Factory | Repaired Hyp. Gauss Rifle 30921 | -5/Factory | Repaired Imp. Heavy Treads 30972 | -5/Factory | Repaired Adv. Terrain Scanner 31017 | -5/Factory | Repaired Arm. Huge Wheel+ 31068 | -5/Factory | Repaired Coil Gun+ 31118 | -5/Factory | Repaired Arm. Huge Wheel+ 31376 | -5/Factory | Discovered new exit (range 13) 31460 | -5/Factory | Cargo convoy interrupted 31514 | -5/Factory | Build established: Hauler-Skirmisher 31648 | -5/Factory | Discovered new exit (range 18) 31850 | -5/Factory | Identified exit to Factory 32320 | -5/Factory | Build established: Hauler-Tank 32351 | -5/Factory | Repaired Imp. Heavy Treads 32409 | -5/Factory | Repaired Coil Gun+ 32557 | -5/Factory | Crushed by falling debris 32640 | -5/Factory | Build established: Hauler-Mutant 32683 | -5/Factory | Fabricated T-07 Excavator (x2) 33163 | -5/Factory | Build established: Hauler-Tank 33689 | -5/Factory | Identified exit to Upper Caves 33689 | -5/Factory | Identified exit to Extension 34144 | -5/Factory | First assault squad dispatched 34286 | -5/Factory | Entered Upper Caves 34613 | -5/Upper Caves | Learned Factory terminal intel 34728 | -5/Upper Caves | Build established: Hauler-Assassin 34871 | -5/Upper Caves | A Derelict revealed a hidden shortcut to "reach the base" 34882 | -5/Upper Caves | Identified exit to Warlord 34884 | -5/Upper Caves | Entered Warlord 35046 | -5/Warlord | Opened Warlord's prototype stash 35051 | -5/Warlord | Found Prototype Reactor 35051 | -5/Warlord | Identified Vortex Chain Reactor 35060 | -5/Warlord | Found Exp. Targeting Computer 35082 | -5/Warlord | Found Prototype Processor 35082 | -5/Warlord | Identified Spectral Analyzer 35232 | -5/Warlord | Warlord's base attacked by MAIN.C 35244 | -5/Warlord | Found Prototype Launcher 35244 | -5/Warlord | Identified Vortex Catalyst Activator 35247 | -5/Warlord | Found Prototype Piercing Weapon 35247 | -5/Warlord | Identified Vortex Lance 35251 | -5/Warlord | Found Prototype Energy Cannon 35251 | -5/Warlord | Identified Vortex Cannon 35256 | -5/Warlord | Found Prototype Energy Gun 35256 | -5/Warlord | Identified Vortex Shotgun 35260 | -5/Warlord | Found Vortex Shotgun 35265 | -5/Warlord | Found Vortex Cannon 35368 | -5/Warlord | Met Warlord 35538 | -5/Warlord | Build established: Hauler-Skirmisher 35582 | -5/Warlord | Warlord forces counterattacked 35627 | -5/Warlord | Spotted Striker 35644 | -5/Warlord | Destroyed Striker 35656 | -5/Warlord | Spotted Striker 35678 | -5/Warlord | Spotted Executioner 35710 | -5/Warlord | Destroyed 12 combat bots 35727 | -5/Warlord | Lost 9 allies 35730 | -5/Warlord | Found Prototype Device 35730 | -5/Warlord | Identified Adv. Kinecellerator 35746 | -5/Warlord | Spotted Striker 35748 | -5/Warlord | Spotted Striker 35755 | -5/Warlord | Discovered new exit (range 9) 35772 | -5/Warlord | Entered Proximity Caves 35796 | -4/Proximity Caves | Lost 9 allies 36082 | -4/Proximity Caves | Received a Behemoth hack from an annoying Tinkerer 36409 | -4/Proximity Caves | Lost 5 parts (1n2u2w) 36622 | -4/Proximity Caves | Build established: Hauler-Mutant 36896 | -4/Proximity Caves | Discovered exit to Factory (range 6) 36912 | -4/Proximity Caves | Learned Research garrison access intel 36922 | -4/Proximity Caves | Entered Factory 36922 | -4/Factory | Evolved 2 slots: Utility x2 36923 | -4/Factory | Loaded intel: 26 terminal locations 37229 | -4/Factory | Build established: Hauler-Skirmisher 37872 | -4/Factory | Build established: Hauler-Gunner 38016 | -4/Factory | Incoming investigation squad redirected 38419 | -4/Factory | Build established: Hauler-Skirmisher 38505 | -4/Factory | Incoming investigation squad redirected 38589 | -4/Factory | Fabricated Hyp. Coil Gun (x2) 38921 | -4/Factory | Identified exit to Garrison 38921 | -4/Factory | Entered Garrison 38988 | -4/Garrison | Phase Generator disabled 39090 | -4/Garrison | Garrison Relay disabled 39525 | -4/Garrison | Garrison Relay disabled 39551 | -4/Garrison | Triggered checkpoint 39559 | -4/Garrison | Garrison Relay disabled 39806 | -4/Garrison | Discovered new exit (range 8) 39877 | -4/Garrison | Triggered checkpoint 39936 | -4/Garrison | Discovered new exit (range 3) 39993 | -4/Garrison | Triggered checkpoint 40181 | -4/Garrison | Build established: Hauler-Tank 40210 | -4/Garrison | Entered Factory 40210 | -4/Factory | Accompanied by 3 allies 40328 | -4/Factory | Fabricated Hyp. Coil Gun? 40835 | -4/Factory | Discovered new exit (range 21) 41111 | -4/Factory | Unchained authorized (GL-D0S) 41195 | -4/Factory | Repaired Exp. Cooling System 41404 | -4/Factory | Identified exit to Upper Caves 42407 | -4/Factory | Build established: Hauler-Skirmisher 42486 | -4/Factory | Lost 4 parts (1p1n1u1w) 42613 | -4/Factory | Lost 3 parts (1p2u) 42776 | -4/Factory | Identified exit to Garrison 42776 | -4/Factory | Entered Garrison 42861 | -4/Garrison | Triggered checkpoint 42930 | -4/Garrison | Triggered checkpoint 43083 | -4/Garrison | Build established: Hauler-Gunner 43494 | -4/Garrison | Found embedded Infiltrators 43548 | -4/Garrison | Garrison Relay disabled 43586 | -4/Garrison | Spotted B-86 Titan 43598 | -4/Garrison | Triggered checkpoint 43604 | -4/Garrison | Allies destroyed B-86 Titan 43604 | -4/Garrison | Triggered checkpoint 43966 | -4/Garrison | Triggered checkpoint 44013 | -4/Garrison | Destroyed 9 combat bots 44100 | -4/Garrison | Build established: Hauler-Tank 44179 | -4/Garrison | Garrison Relay disabled 44325 | -4/Garrison | Garrison Relay disabled 44445 | -4/Garrison | Discovered new exit (range 15) 44626 | -4/Garrison | Discovered new exit (range 8) 44712 | -4/Garrison | Triggered checkpoint 44715 | -4/Garrison | Garrison Relay disabled 44721 | -4/Garrison | Build established: Scavenger-Gunner 44786 | -4/Garrison | Learned Research security intel 44867 | -4/Garrison | Spotted B-86 Titan 44914 | -4/Garrison | Destroyed B-86 Titan 45028 | -4/Garrison | Entered Research 45028 | -3/Research | Evolved 2 slots: Utility x1, Weapon x1 45030 | -3/Research | Loaded intel: 4 garrison access locations 45047 | -3/Research | Adv. Hacking Suite fried by hacking feedback 45072 | -3/Research | Incoming investigation squad redirected 45278 | -3/Research | First assault squad dispatched 45300 | -3/Research | Incoming assault squad redirected 45304 | -3/Research | Incoming assault squad redirected 45335 | -3/Research | Garrison activated, responded to threat 45380 | -3/Research | Destroyed 8 combat bots 45464 | -3/Research | Incoming assault squad redirected 45477 | -3/Research | Released all parts (2) 45479 | -3/Research | Core integrity fell below 50% 45505 | -3/Research | Lost 23 parts (3p7n5u8w) 45506 | -3/Research | Core integrity fell below 20% 45535 | -3/Research | Destroyed by S-43 Plague with Heavy Machine Gun Last Messages --------------- 45527_ A bubble of rippling energy engulfs the area. 45527_ Field strength at 88. 45527_ Field strength at 76. 45528_ ALERT: Unidentified disturbance in Zone 5F, multiple assault carriers dispatched. 45528_ Field strength at 64. 45529_ Slug penetrates Repair Station. 45529_ Field strength at 39. 45530_ Slug penetrates Wall. 45530_ Field strength at 27. 45531_ Field Propulsion Drive destroyed. 45531_ Field strength at 15. 45532_ Field strength at 9. 45533_ Stasis field depleted. 45533_ Q-thruster destroyed. 45533_ Slug penetrates Wall. 45533_ Slug penetrates Repair Station. 45533_ Slug penetrates Wall. 45533_ Slug penetrates Repair Station. Map ----- +----------------------------------------------------+ | ?????????????????????????????????????????????????? | | ?????????????????????????????????????????????????? | | ?????????????????????????????????????????????????? | | ?????????????????????????????????????????????????? | | ?????????????????????????????????????????????????? | | ?????????????????????????????????????????????????? | | ?????????????????????????????????????????????????? | | ?????????????????????????????????????????????????? | | ?????????????????????????????????????????????????? | | ?????????????????????????????????????????????????? | | ??????????????????????????? ?????????????????????? | | ??????????????????????????? #???????????????????? | | ??????????????????????????? #???????????????????? | | ??????????????????????????? #???????????????????? | | ?????????????????????????? #???????????????????? | | ?????????????????????????? #???????????????????? | | ?????????????????????????? #???????????????????? | | ?????????????????????????? #???????????????????? | | ?????????????????????????? #???????????????????? | | ?????????????????????????? #???????????????????? | | ?????????????????????????? #???????????????????? | | ?????????????????#??????## ####+######?????????? | | ?????????????????#T ????# ?????????? | | ?????????????????#"" ??# ????????? | | ?????????????????#"" # ????????? | | ?????????????????#"" /@ ????????? | | ???????########### # w ????????? | | ???????# #= ??# ###/####???????????? | | ???????# ######## #??????????????????? | | ???????# = # #??????????????????? | | ???????# # #??????????????????? | | ???????# ! p/ #??????????????????? | | ???????# p # g""""ss #??????????????????? | | ???????# h # ""R" #??????????????????? | | #??????# = # h "" " s###??????????????????? | | ?#########+##### ^ #????????????????????? | | ?# !%! #????????????????????? | | " # * ????????????????????? | | " # ???????????????????? | | " + ww ??????????????????? | | # #######/??????????????????? | | # ############ ##?????? ?????????????????? | | ?# #??????????? #??????????????????????????? | | ##?# #??????????? #??????????????????????????? | | ???# #??????????? #??????????????????????????? | | ???# #???????????????????????????????????????? | | ???# #???????????????????????????????????????? | | ???# #???????????????????????????????????????? | | ???# #?? ???????????????????????????????????? | | ???# #? ??? ???????????????????????????????? | +----------------------------------------------------+ Best States ------------- Heat Dissipation 84 Energy Generation 55 Energy Capacity 715 Matter Stores 550 Matter Capacity 550 Sight Range 24 Robot Scan Range 16 Terrain Scan Range 20 Terrain Scan Density 10 Jamming Range 16 Cloak Strength 2 EM Shielding 3 Corruption Containment 8 Corruption Block 30 Armor Coverage 900 Resistance: TH 10 Core Shielding 30 Evasion (%) 62 Targeting Accuracy 12 Melee Accuracy 5 Target Analysis 8 Core Analysis 6 Recoil Reduction 6 Matter Filtering 30 Particle Charging 20 Kinecelleration 50 Offensive Hacking 26 Defensive Hacking 14 Item Schematics ----------------- Combat Drone Bay | -6/Data Miner | Free Lgt. Regenerative Plating | -6/Data Miner | Free Enh. Flexi-carbon Leg | -6/Data Miner | Free Prc. Matter Filter | -6/Data Miner | Free Enh. Force Rifle | -6/Data Miner | Free Imp. Linear Gravjet | -6/Data Miner | Free Imp. Point Defense System | -6/Data Miner | Free Hvy. Disruptor Cannon | -6/Data Miner | Free Adv. Coolant Injector | -6/Data Miner | Free Adv. Thermal Generator | -6/Data Miner | Free Adv. Remote Force Field | -6/Data Miner | Free Hyp. Coil Gun | -5/Factory | Scanalyzed Robot Schematics ------------------ S-27 Virus | -6/Data Miner | Free R-10 Processor | -6/Data Miner | Free P-60 Hacker | -6/Data Miner | Free M-30 Cleanser | -6/Data Miner | Free B-60 Warrior | -6/Data Miner | Free G-50 Soldier | -6/Data Miner | Free A-27 Freighter | -6/Data Miner | Free Fabricated ------------ T-07 Excavator | x2 | -5/Factory | Preloaded Hyp. Coil Gun | x2 | -4/Factory Hyp. Coil Gun | x2 | -4/Factory Repaired ---------- Lgt. Treads | 20% | -10/Materials Lgt. Treads | 29% | -10/Materials Lgt. Nuclear Core | 8% | -10/Materials Katana | 54% | -9/Materials Deuterium Engine | 2% | -9/Materials Lgt. Treads | 14% | -9/Materials Gauss Rifle | 92% | -8/Materials | Corrupted Katana | 80% | -7/Factory | Corrupted Imp. Heavy Treads | 1% | -5/Factory | Broken Imp. Heavy Treads | 15% | -5/Factory Imp. Heavy Treads | 50% | -5/Factory Imp. Heavy Treads | 51% | -5/Factory Hyp. Gauss Rifle | 33% | -5/Factory Imp. Heavy Treads | 55% | -5/Factory Adv. Terrain Scanner | 29% | -5/Factory Arm. Huge Wheel | 72% | -5/Factory Coil Gun | 45% | -5/Factory Arm. Huge Wheel | 73% | -5/Factory Imp. Heavy Treads | 81% | -5/Factory Coil Gun | 69% | -5/Factory Exp. Cooling System | 26% | -4/Factory Studied --------- Maul | -9/Materials | Hacked Grenade Launcher | -9/Materials | Hacked Hvy. Mace | -8/Materials | Hacked Arm. Huge Wheel | -7/Factory | Hacked Wheel | -7/Factory | Hacked Hvy. Rocket Launcher | -7/Factory | Hacked Coil Gun | -6/Factory | Hacked Phase Cannon | -6/Factory | Hacked Hyp. Gauss Rifle | -5/Factory | Hacked Hyp. Coil Gun | -5/Factory | Hacked KE Penetrator | -5/Factory | Hacked Adv. Plasma Cannon | -5/Factory | Hacked Alien Tech Used ----------------- Core Expander Achievements -------------- Network Effect Challenges ------------ None Game ------ Seed AblativePointyProjector Manual? 0 Play Time 06:12:24 Cumulative 370.2 hours Start 2026.02.01 @ 00:31:21 End 2026.02.01 @ 17:26:31 Sessions 3 Manual Loads 0 Difficulty Rogue Special Mode None Game No. 299 Rogue 299 Adventurer 0 Explorer 0 Win Type - Total 2 Types 2/0/0/0/0/0/0/0/0/0 Lore% 63 Gallery% 71 Achievement% 52 Wizard Run 0 Options --------- Layout 1 ASCII 0 Keyboard 0 Movement Mouse Keybinds 0 Fullscreen 1 Font 32/SmallcapsGlow Map View 50x35 Zoom Use 0% Tactical HUD 1 Map Filters NONE Filters NONE Steam 1 RUN: e17fe913-8bea-4f98-96b2-dd26738d2da8